Cogmind - Beta 16 @@@ ROGUE MODE // 2025.11.06 @ 15:09:30 Player: MolePlayingNice Result: Destroyed by P-80 Master with Gamma Rifle Performance ------------- Evolutions (9) 4500 Regions Visited (28) 5600 Robots Destroyed (753) 3765 Value Destroyed (40184) 40184 Prototype IDs (60) 1200 Alien Tech Used (14) 2800 Bonus (25141) 25141 TOTAL SCORE: 83190 Bonus ------- Triggered High Security 500 High Alert Combat Kills 13568 Follower Combat Kills 3748 Entered Garrisons 600 Used RIF Installer 1000 Network Hubs Disabled 400 Registered with UFD 300 Met Optimus in HQ 500 Built Enhanced Grunts 300 Met R17 at Cetus 500 Found Hidden Lab 3000 Used Core Reset Matrix 3000 Met R17 at Research 2000 Friendly Fire -4275 Cogmind --------- Core Integrity 0/1600 Matter 253/300 Energy 343/350 System Corruption 0% +Membrane Temperature Cool (0) Movement Core (50) Location -1/Access Parts ------- > --- POWER (4) -------- (None) > --- PROPULSION (2) --- (None) > --- UTILITY (14) ----- (None) > --- WEAPON (5) ------- Powered Hammer > --- INVENTORY (7) ---- Medium Treads Compact Wheel Energy Well (350) Heavy Laser Potential Cannon Peak State ------------ > --- POWER ------------ Quantum Reactor Quantum Reactor Reinforced Quantum Reactor Improved Quantum Reactor > --- PROPULSION ------- Wheel Wheel > --- UTILITY ---------- Advanced Heat Sink Experimental Cooling System Coolant Network Advanced Coolant Injector Huge Storage Unit Experimental Optical Array Advanced Targeting Computer Experimental Core Analyzer Medium Regenerative Plating Heavy Regenerative Plating Advanced Force Field Core Physics Calibrator > --- WEAPON ----------- Enhanced Nova Cannon Potential Cannon Potential Cannon > --- INVENTORY -------- Reinforced Antimatter Reactor Medium Treads Compact Wheel Compact Wheel Experimental Heat Sink Matter Compressor Experimental EM Shield Advanced Force Field Long-range Tractor Beam Transdimensional Reconstructor Transdimensional Reconstructor High-powered Transdimensional Reconstructor High-powered Transdimensional Reconstructor Core Regenerator Core Regenerator Quantum Rifle Compact HERF Cannon Matter Neutralizer Long-range Phase Cannon Enhanced Nova Cannon Enhanced Nova Cannon Helical Railgun Multirail Advanced Micro-nuke Launcher Core Stripper [Rating: 217] Favorites ----------- Power Quantum Reactor Engine Heavy Ion Engine Power Core Neutrino Core Reactor Quantum Reactor Propulsion Overtuned Huge Scrapsphere Treads Enhanced Armored Medium Treads Leg Aluminum Leg Wheel Overtuned Huge Scrapsphere Hover Unit Cooled Aerolev Unit Utility Scrap Suit Device Scrap Suit Storage Huge Storage Unit Processor Advanced Targeting Computer Hackware Relay Coupler [NC] Protection Medium Regenerative Plating Artifact Core Physics Calibrator Weapon Overtuned Railgun Energy Gun Plasma Rifle Energy Cannon Enhanced Nova Cannon Ballistic Gun Overtuned Railgun Ballistic Cannon Light Cannon Launcher Hellfire Missile Launcher Special Weapon Improved Remote Datajack Impact Weapon Core Stripper Piercing Weapon Enhanced Force Lance Build | -11 -10 -9 -9 -9 -8 -8 -8 -8 -8 -6 -6 -6 -6 -6 -5 -5 -5 -4 -4 -3 -3 -3 -3 -3 -2 -2 -2 -1 ------- Run | Yrd Mat Mat Min Exi Min Mat Sto Rec Scr Fac Ext Cet Arc Hub Fac Gar Fac Fac Gar Res Gar Res Arm Lab Res Qua Sec Acc Slots Evolved 18 | . . 2 . . . 2 . . . 4 . . . . 2 . . 2 . 2 . . . . 2 . . 2 Power 3 | . . . . . . . . . . . . . . . 1 . . . . . . . . . 1 . . 1 Propulsion . | . . 1 . . . . . . . . . . . . . . . . . . . . . . . . . -1 Utility 12 | . . 1 . . . 1 . . . 3 . . . . 1 . . 2 . 1 . . . . 1 . . 2 Weapon 3 | . . . . . . 1 . . . 1 . . . . . . . . . 1 . . . . . . . . Parts Attached 533 | . 18 32 . . 1 1 16 . 11 10 28 11 1 4 24 5 37 24 23 41 4 24 55 4 10 34 40 75 Power 68 | . 2 3 . . . . 2 . . 1 4 2 . . 4 1 2 4 5 7 1 2 5 1 2 7 3 10 Engine 10 | . 2 2 . . . . 2 . . . 3 . . . . . . . . . . . . . . . . 1 Core 8 | . . 1 . . . . . . . 1 1 . . . . . 2 1 . . . . . . . 1 . 1 Reactor 50 | . . . . . . . . . . . . 2 . . 4 1 . 3 5 7 1 2 5 1 2 6 3 8 Propulsion 55 | . 5 9 . . . . 3 . 5 . 1 . . . . . 1 1 . . . . 6 . 1 . 11 12 Treads 5 | . . . . . . . . . . . . . . . . . . . . . . . 2 . . . 2 1 Leg 23 | . 5 9 . . . . 2 . 3 . . . . . . . . . . . . . 2 . . . . 2 Wheel 26 | . . . . . . . . . 2 . 1 . . . . . 1 1 . . . . 2 . 1 . 9 9 Hover 1 | . . . . . . . 1 . . . . . . . . . . . . . . . . . . . . . Flight . | . . . . . . . . . . . . . . . . . . . . . . . . . . . . . Utility 228 | . 5 10 . . . 1 3 . 5 7 13 4 . 4 10 . 16 8 8 19 2 12 22 1 6 21 16 35 Device 134 | . 3 9 . . . 1 1 . 2 6 8 1 . 2 6 . 10 5 2 10 1 5 14 . 4 13 10 21 Storage 17 | . 2 1 . . . . . . 1 . . 1 . . 1 . 1 . . . . 1 . . 1 . . 8 Processor 27 | . . . . . . . . . . 1 . . . . 1 . . 3 . 4 . 2 5 . . 3 3 5 Hackware 22 | . . . . . . . . . . . 2 . . 2 . . 5 . 4 1 1 4 1 . 1 . 1 . Protection 26 | . . . . . . . 2 . 2 . 3 2 . . 2 . . . 2 4 . . 2 1 . 4 1 1 Artifact 2 | . . . . . . . . . . . . . . . . . . . . . . . . . . 1 1 . Weapon 182 | . 6 10 . . 1 . 8 . 1 2 10 5 1 . 10 4 18 11 10 15 1 10 22 2 1 6 10 18 Energy Gun 87 | . 3 1 . . 1 . 7 . 1 2 4 3 1 . 4 3 8 6 4 11 . 2 10 1 . 3 . 12 Energy Cannon 23 | . 2 5 . . . . . . . . . . . . . . 1 . . 2 . . . 1 1 1 6 4 Ballistic Gun 43 | . . . . . . . . . . . 3 1 . . 6 . 4 4 5 . 1 7 7 . . . 4 1 Ballistic Cannon 3 | . 1 . . . . . . . . . . . . . . . 1 . . . . . 1 . . . . . Launcher 11 | . . 4 . . . . . . . . 1 . . . . 1 . . . 1 . 1 2 . . 1 . . Special Weapon 11 | . . . . . . . 1 . . . 2 1 . . . . 3 1 1 1 . . 1 . . . . . Impact Weapon 2 | . . . . . . . . . . . . . . . . . . . . . . . . . . 1 . 1 Slashing Weapon . | . . . . . . . . . . . . . . . . . . . . . . . . . . . . . Piercing Weapon 2 | . . . . . . . . . . . . . . . . . 1 . . . . . 1 . . . . . Special Melee Weapon . | . . . . . . . . . . . . . . . . . . . . . . . . . . . . . Unidentified Prototypes 54 | . . 2 . . . . 2 . . 1 . 7 . . 1 1 3 1 . 8 . 1 3 3 2 9 8 2 Corrupted Parts 4 | . . . . . . . . . . . . . . . . . 1 . . . . 1 2 . . . . . System Corruption 25 | . . . . . . . . . . . . . . . . . 6 . . . . 6 13 . . . . . Parts Lost 163 | . 2 7 . . . . . . . . 7 . . . 4 . 3 8 7 2 1 10 25 . . 7 13 67 Power 23 | . 1 1 . . . . . . . . 1 . . . 2 . . . . . . 1 5 . . 1 . 11 Propulsion 19 | . . 2 . . . . . . . . 1 . . . . . . . . . . . 2 . . 1 5 8 Utility 74 | . . 4 . . . . . . . . 2 . . . 1 . 1 4 5 2 . 4 10 . . 2 6 33 Weapon 47 | . 1 . . . . . . . . . 3 . . . 1 . 2 4 2 . 1 5 8 . . 3 2 15 Highest Loss Streak 20 | . 1 5 . . . . . . . . 6 . . . 2 . 1 3 3 1 1 7 14 . . 3 4 20 To Critical Strikes 3 | . . . . . . . . . . . . . . . . . . 1 . . . . . . . 1 1 . Average Backups 20 | . 7 10 15 15 13 11 14 15 15 17 17 18 19 18 18 19 23 23 23 24 23 23 20 20 22 23 23 22 Power 1 | . . . . . . . . 1 1 1 . 2 2 2 1 1 1 1 2 2 2 2 1 2 1 1 1 . Propulsion 1 | . 2 2 3 3 3 3 2 2 1 1 1 1 1 1 1 . . . . . . . 1 . 1 . . 2 Utility 9 | . 2 2 5 5 5 4 6 6 7 8 10 9 11 10 8 10 12 12 12 15 15 14 8 7 7 8 8 4 Weapon 6 | . 2 4 6 6 4 3 3 4 4 4 3 4 4 3 6 5 8 7 6 5 5 5 8 8 10 7 6 9 Tool/Special . | . . . . . . . . . . . . . . . . . . . . . . . . . . . . . Unused Backups 109 | . 11 5 . . . . 10 1 3 4 5 7 . 2 3 7 7 3 4 7 2 . 8 2 1 5 6 6 Power 17 | . 1 1 . . . . 2 . . . . 2 . . 1 1 1 2 3 2 . . . . . 1 . . Propulsion 17 | . 6 . . . . . . . 1 . . . . . . 1 . . . . . . 2 1 . 1 2 3 Utility 42 | . 1 2 . . . . 6 . 2 3 3 3 . . 1 5 4 . . 4 2 . 2 . . 1 2 1 Weapon 31 | . 3 2 . . . . 2 1 . 1 2 2 . 2 1 . 2 1 1 1 . . 4 1 1 1 1 2 Tool/Special 2 | . . . . . . . . . . . . . . . . . . . . . . . . . . 1 1 . Average Slot Usage (%) 88 | . 99 99 100 77 97 97 99 100 93 85 85 85 86 86 86 87 87 88 85 86 89 89 78 85 85 83 86 80 Engine 2 | . 14 7 11 11 11 9 9 9 9 5 2 . . . . . . . . . . . . . . . . . Reactor 7 | . . . . . . . . . . . . 5 6 6 10 10 6 8 10 8 9 8 8 9 13 12 13 13 Leg 5 | . 28 32 33 33 33 27 26 27 20 . . . . . . . . . . . . . 1 . . . . . Wheel 7 | . . . . . . . . . 4 13 12 13 13 13 10 11 11 10 10 9 9 9 4 4 6 6 10 7 Device 20 | . 13 21 22 22 22 26 23 18 14 26 25 25 26 22 23 23 22 25 26 20 22 22 17 14 20 17 15 20 Storage 6 | . 14 11 11 11 11 9 9 9 9 6 6 6 6 6 5 5 5 5 5 4 4 4 4 4 4 4 4 7 Processor 4 | . . . . . . . . . . 4 3 . . . 2 . . 4 . 4 4 7 11 14 9 7 7 9 Hackware 1 | . . . . . . . . . . . . . . 8 2 . 1 . 2 2 . 2 2 . . 3 . . Protection 6 | . . . . . . . 3 9 9 . 2 6 6 2 5 11 9 9 8 10 14 9 2 9 7 6 7 5 Energy Gun 11 | . 21 . . . 8 17 22 27 27 26 18 23 26 26 8 16 14 8 6 21 21 2 7 . . 2 4 4 Energy Cannon 3 | . 1 21 22 . 11 9 4 . . . . . . . . . . . . . . . . 2 . . 12 8 Ballistic Gun 6 | . . . . . . . . . . . 6 2 . . 12 5 5 11 12 . . 19 12 20 19 15 1 2 Peak Build Rating 217 | . 9 21 21 18 21 24 38 33 54 78 79 100 96 100 112 104 108 127 123 148 147 163 154 147 163 203 206 217 Average Rating 111 | . 7 16 21 15 20 23 27 33 40 73 73 92 95 96 104 99 102 118 117 134 143 152 130 140 158 171 189 164 On Entrance 84 | 6 6 8 21 21 15 21 24 33 33 54 73 74 96 96 94 93 98 104 122 117 145 143 126 141 145 161 200 170 Avg Prop Armor Cover (%) 3 | . . . . . . . . . . . . . . . . . . . . . . . 3 4 3 . 3 28 Naked Turns 22 | . . . . . . . . . . . . . . . . . . . . . . . . . . . . 22 Heaviest Build 283 | 13 22 42 42 30 39 43 44 42 66 79 77 96 96 96 115 106 154 168 174 183 180 187 173 167 213 264 276 283 Greatest Support 65 | 20 20 30 30 30 30 30 35 35 65 28 28 28 28 28 28 28 28 28 28 28 28 28 37 20 36 36 36 41 Greatest Overweight (x) 24 | . 1 1 1 . 1 1 2 1 2 2 2 3 3 3 5 3 5 8 6 6 6 6 12 8 9 13 24 13 Average Overweight (x) 4 | . . . 1 . 1 1 1 1 1 2 2 2 3 3 3 3 4 5 5 5 5 5 6 8 6 7 8 7 Largest Inventory Capacity 27 | . 10 15 15 15 15 15 15 15 20 20 20 20 20 20 20 20 25 25 25 25 25 25 25 25 25 25 27 27 Average Capacity 21 | . 8 10 15 15 15 15 15 15 16 20 20 20 20 20 20 20 24 25 25 25 25 25 25 25 25 25 26 26 Most Carried 27 | . 10 15 15 15 14 13 15 15 20 20 20 20 20 20 20 20 25 25 25 25 25 25 25 25 25 25 27 27 Average Carried 21 | . 7 10 15 15 13 11 14 15 16 19 19 19 20 19 19 19 24 24 23 24 24 24 22 21 24 24 25 24 Final Capacity 27 | 8 10 15 15 15 15 15 15 15 20 20 20 20 20 20 20 20 25 25 25 25 25 25 25 25 25 25 27 7 Final Carried 25 | 6 10 15 15 15 13 12 15 15 20 20 20 20 20 19 19 20 25 23 25 25 24 22 25 25 25 25 25 6 Scrap Suit Usage (%) 5 | . . . . . . . . . 7 . 9 6 . 4 24 38 6 1 17 1 . 4 2 . 2 10 . 1 Parts Cannibalized 56 | . . . . . . . . . 1 . 6 2 . 5 2 3 5 . 1 . . 7 3 . 4 16 . 1 Class Distribution -------------------- 38% | Scavenger-Scrapper 11% | Scavenger-Tank 9% | Scavenger-Gunner 7% | Scavenger-Mutant 6% | Commander-Tank 6% | Commander-Scrapper 3% | Scavenger-Skirmisher Dominant Class ---------------- Mutant | -10/Materials Scavenger-Mutant | -9/Materials Scavenger-Mutant | -9/Mines Scavenger-Mutant | -9/Exiles Scavenger-Mutant | -8/Mines Scavenger-Gunner | -8/Materials Commander-Tank | -8/Storage Commander-Tank | -8/Recycling Commander-Tank | -8/Scraptown Scrapper | -6/Factory Scavenger-Scrapper | -6/Extension Commander-Scrapper | -6/Cetus Commander-Scrapper | -6/Archives Scavenger-Scrapper | -6/Hub_04(d) Scavenger-Scrapper | -5/Factory Scavenger-Scrapper | -5/Garrison Scavenger-Scrapper | -5/Factory Scavenger-Scrapper | -4/Factory Scavenger-Scrapper | -4/Garrison Scavenger-Tank | -3/Research Scavenger-Tank | -3/Garrison Scavenger-Scrapper | -3/Research Scavenger-Scrapper | -3/Armory Scavenger-Scrapper | -3/Lab Scavenger-Scrapper | -2/Research Scavenger-Scrapper | -2/Quarantine Scavenger-Tank | -2/Section 7 Scavenger-Gunner | -1/Access Resources | -11 -10 -9 -9 -9 -8 -8 -8 -8 -8 -6 -6 -6 -6 -6 -5 -5 -5 -4 -4 -3 -3 -3 -3 -3 -2 -2 -2 -1 ----------- Run | Yrd Mat Mat Min Exi Min Mat Sto Rec Scr Fac Ext Cet Arc Hub Fac Gar Fac Fac Gar Res Gar Res Arm Lab Res Qua Sec Acc Matter Collected 23188 | 200 365 806 . 37 . . 273 . . 565 880 190 20 80 1337 599 1283 895 1268 737 494 3528 4610 . 932 2268 753 1068 Remotely 5921 | . . . . . . . . . . . . . . . . . . . . . . 2068 2021 . 892 822 . 118 Salvage Created 42630 | . 575 1409 . . . . 1101 164 . 541 2174 182 120 461 2237 947 2712 1824 1369 2131 1444 3643 3762 . 2248 2769 4865 5952 Parts 1775 | . 25 111 . . . . 60 9 . 26 82 17 7 18 110 29 119 63 60 72 12 221 131 . 95 115 183 210 Haulers Intercepted 15 | . 1 2 . . . . 6 . . 1 . . . . . . 2 1 . . . . . . . . . 2 Recyclers Shooed 27 | . 2 . . . . . . . . 1 6 . . . 2 . 3 3 . . . 3 . . . . 2 5 Parts Field Recycled . | . . . . . . . . . . . . . . . . . . . . . . . . . . . . . Retrieved Matter . | . . . . . . . . . . . . . . . . . . . . . . . . . . . . . Parts Self-Destructed . | . . . . . . . . . . . . . . . . . . . . . . . . . . . . . Prevented . | . . . . . . . . . . . . . . . . . . . . . . . . . . . . . Parts Restored . | . . . . . . . . . . . . . . . . . . . . . . . . . . . . . Kills | -11 -10 -9 -9 -9 -8 -8 -8 -8 -8 -6 -6 -6 -6 -6 -5 -5 -5 -4 -4 -3 -3 -3 -3 -3 -2 -2 -2 -1 ------- Run | Yrd Mat Mat Min Exi Min Mat Sto Rec Scr Fac Ext Cet Arc Hub Fac Gar Fac Fac Gar Res Gar Res Arm Lab Res Qua Sec Acc Combat Hostiles Destroyed 604 | . 11 50 . . . . 17 3 . 8 24 . 1 7 28 15 29 17 23 32 41 40 64 . 21 35 62 76 Guns 348 | . 10 . . . . . 4 3 . 8 12 . 1 7 26 15 28 15 22 23 17 40 49 . 21 26 6 15 Cannons 92 | . 1 19 . . . . 7 . . . . . . . . . . . . . . . 1 . . 3 37 24 AOE 122 | . . 31 . . . . 4 . . . 11 . . . 2 . . . . 4 16 . 13 . . 5 7 29 Classes Destroyed 26 | . 4 8 . . . . . . . 2 3 . . . . . 1 1 1 2 1 . 2 . . 1 . . Worker 38 | . . 1 . . . . 3 . . 1 1 . . . 2 . . 1 . . . 9 . . 5 . 3 12 Builder 32 | . . 3 . . . . . . . 1 4 . . . 3 . 1 1 . . . 6 . . 3 . 5 5 Tunneler 3 | . . . . . . . . . . . . . . . . . 1 . . . . 2 . . . . . . Hauler 15 | . 1 2 . . . . 6 . . 1 . . . . . . 2 1 . . . . . . . . . 2 Recycler 35 | . 1 1 . . . . . . . . 6 . . . 4 . 3 3 . . . 1 . . 2 . 3 11 Mechanic 5 | . . 1 . . . . . . . . . . . . 1 . . . . . . . . . 1 . . 2 Operator 10 | . . 1 . . . . 2 . . 2 . . 1 1 . . 1 . . . . 1 . . . . 1 . Watcher 16 | . 1 . . . . . . . . . 1 1 . 1 3 . 1 . . . . 2 . . 1 2 2 1 Swarmer 91 | . . 17 . . . . 4 . . 3 4 . . . 7 . 10 . 10 13 . 2 . . . 5 5 11 Saboteur 5 | . . . . . . . . . . . . . . . . . . . . . . . 2 . . . 3 . Grunt 176 | . 11 20 . . . . 4 . . . 9 . . 3 6 11 3 7 3 5 10 5 18 . 17 4 16 24 Brawler 27 | . . 4 . . . . . . . . . . . . 1 . . . . 1 1 . 5 . 1 2 5 7 Duelist 20 | . . . . . . . . . . . 1 . . . 1 1 . . 2 . 1 . 4 . 1 1 4 4 Protector 10 | . . 2 . . . . . . . . . . . . . . . . . . . . 2 . . 1 . 5 Sentry 67 | . . 7 . . . . 9 3 . . 8 . 1 3 5 2 2 1 4 . 5 5 3 . . 3 3 3 Demolisher 1 | . . . . . . . . . . . . . . . . . . . . . . . 1 . . . . . Specialist 8 | . . . . . . . . . . . . . . . . . . . 1 . . . 7 . . . . . Hunter 48 | . . . . . . . . . . 2 . . . . 2 . 6 3 2 3 . 10 9 . . 2 2 7 Programmer 100 | . . . . . . . . . . 3 . . . 1 6 1 8 4 1 . . 13 13 . 2 16 18 14 Heavy 4 | . . . . . . . . . . . . . . . . . . 1 . . . 2 1 . . . . . Behemoth 8 | . . . . . . . . . . . 2 . . . . . . 1 1 . . 2 . . . . 2 . S7 Guard 2 | . . . . . . . . . . . . . . . . . . . . . . . . . . . 2 . Striker 6 | . . . . . . . . . . . . . . . . . . . . 6 . . . . . . . . Executioner 6 | . . . . . . . . . . . . . . . . . . . . 4 . . . . . . 2 . Fortress 1 | . . . . . . . . . . . . . . . . . . . . . . . . . . 1 . . Scrapoid 14 | . . . . . . . . . . . 1 . . . . . 7 1 . 2 . 2 . . . . . 1 Assembled 24 | . . . . . . . . . . . . . . . . . . . . . 24 . . . . . . . Thug 3 | . . . . . . . . . . . 2 1 . . . . . . . . . . . . . . . . Guerrilla 1 | . . . . . . . . . . . 1 . . . . . . . . . . . . . . . . . Best Kill Streak 27 | . 9 10 . . . . 5 1 . 3 13 1 1 3 12 5 5 9 4 8 17 9 15 . 11 8 11 27 Combat Bots Only 17 | . 4 9 . . . . 4 1 . 3 8 . 1 3 9 5 5 7 4 8 17 6 15 . 7 8 10 10 Max Kills in Single Turn 5 | . 1 5 . . . . 4 1 . 1 3 1 1 1 2 1 3 2 1 4 4 2 3 . 3 3 5 5 Gunslinging 1 | . . . . . . . . . . . 1 . . . 1 . 1 . . 1 1 1 1 . 1 1 . 1 Exploded 5 | . . 4 . . . . 4 . . . 3 . . . 2 . . . . 4 4 . 2 . . 3 5 3 Melee . | . . . . . . . . . . . . . . . . . . . . . . . . . . . . . Uniques/NPCs Destroyed 1 | . . . . . . . . . . . . 1 . . . . . . . . . . . . . . . . A7 (-6/Cetus) Combat | -11 -10 -9 -9 -9 -8 -8 -8 -8 -8 -6 -6 -6 -6 -6 -5 -5 -5 -4 -4 -3 -3 -3 -3 -3 -2 -2 -2 -1 -------- Run | Yrd Mat Mat Min Exi Min Mat Sto Rec Scr Fac Ext Cet Arc Hub Fac Gar Fac Fac Gar Res Gar Res Arm Lab Res Qua Sec Acc Hostile Shots Fired 3751 | . 64 136 . . . . 27 . . 22 240 2 3 52 190 48 140 162 190 106 121 315 485 . 38 126 529 755 Missed 1052 | . 13 50 . . . . 12 . . 6 96 . 1 16 59 17 36 56 52 26 39 88 147 . 15 26 132 165 Hits 2699 | . 51 86 . . . . 15 . . 16 144 2 2 36 131 31 104 106 138 80 82 227 338 . 23 100 397 590 Melee 73 | . . 9 . . . . . . . . 3 . . . . . . . 6 8 2 . 16 . . 8 9 12 Projectile 2626 | . 51 77 . . . . 15 . . 16 141 2 2 36 131 31 104 106 132 72 80 227 322 . 23 92 388 578 AOE 2 | . . . . . . . . . . . . . . . . . . . . 1 . . . . . . . 1 Critical Strikes 189 | . . 3 . . . . 3 . . 2 4 . . 2 4 5 5 10 9 2 2 10 13 . 1 19 14 81 Actively Blocked 5 | . . . . . . . . . . . . . . . . . . . 5 . . . . . . . . . Part Disruptions 6 | . . . . . . . . . . . . . . . . . 1 1 . . . . 2 . . . . 2 Damage Taken 45793 | . 859 1325 . . . . 223 18 . 246 2128 88 48 533 2573 604 2232 2325 2245 2119 1466 3939 5342 . 293 1764 4348 11075 Core 5273 | . 231 249 . . . . 16 . . 44 259 . . 119 218 79 213 60 119 36 48 234 568 . 45 332 401 2002 Absorbed by Shields 8014 | . . . . . . . . . . . 20 28 . . . 25 28 249 599 201 371 1455 924 . 282 865 1918 1049 Redirected to Core 537 | . . . . . . . . . . . . . . . . . . . . . . . . . . 266 271 . Ignored by Resistances 6637 | . . . . . . . . . . . . . . . . . . . 53 . . 155 599 . . 36 4184 1610 Regen/Repaired (Parts) 8033 | . . . . . . . . . 2 . 45 156 30 44 655 281 341 365 732 146 296 713 253 . 105 401 1673 1795 Core Remaining (%) 55 | 100 7 . . . 37 . . . 97 . . . . 50 . . 49 . 84 . . . . 31 . . 40 . Volleys Fired 1768 | . 57 81 . . . 1 42 3 . 29 83 15 5 30 91 47 176 69 102 77 79 155 165 25 32 79 157 168 Largest 5 | . 2 2 . . . 2 3 3 . 4 4 4 4 4 4 4 4 4 4 5 5 5 5 1 5 5 5 5 Hottest 548 | . 95 150 . . . 131 187 165 . 310 310 355 355 355 355 276 362 333 268 413 388 303 403 94 200 330 548 548 Shots Fired 5280 | . 108 150 1 . . 2 110 9 . 91 226 56 14 109 312 137 396 228 282 285 255 590 532 24 152 307 490 414 Gun 4300 | . 101 . . . . 1 81 9 . 91 212 55 14 109 310 137 354 226 262 271 237 547 476 4 152 294 141 216 Cannon 815 | . 7 126 1 . . 1 28 . . . . . . . . . 12 . 5 9 . 34 26 20 . 11 348 187 Launcher 86 | . . 24 . . . . 1 . . . 10 . . . 2 . . . . 1 18 . 16 . . 2 1 11 Special 79 | . . . . . . . . . . . 4 1 . . . . 30 2 15 4 . 9 14 . . . . . Kinetic 2036 | . 7 . . . . . . . . . 77 . . . 188 30 94 96 157 5 5 514 368 4 152 243 26 70 Thermal 3056 | . 101 126 1 . . 2 109 9 . 91 135 55 14 109 122 107 272 130 110 275 232 67 134 . . 62 461 332 Explosive 86 | . . 24 . . . . 1 . . . 10 . . . 2 . . . . 1 18 . 16 . . 2 1 11 Electromagnetic 23 | . . . . . . . . . . . . . . . . . . . . . . . . 20 . . 2 1 Robot Hit Streak 45 | . 10 7 . . . 2 14 9 . 6 21 26 5 12 14 16 16 8 12 18 32 11 12 . 11 10 45 27 Robot Miss Streak 9 | . 3 4 . . . . 4 1 . 6 9 2 1 2 4 3 5 7 9 5 2 8 7 . 4 8 3 3 Penetration Max 2 | . . . . . . . . . . . . . . . 1 1 1 1 1 1 . 2 2 . 2 2 . 2 Secondary Targets 84 | . 2 . . . . . . . . 1 4 . . 1 7 1 6 3 5 6 4 10 16 . 9 6 . 3 Max Gunslinging Chain 1 | . 1 . . . . . . . . 1 1 . . 1 1 1 1 1 1 1 1 1 1 . 1 1 . 1 Shots Hit Robots 2998 | . 69 74 . . . 2 68 5 . 45 140 46 9 68 185 75 189 121 146 180 155 278 282 . 92 159 330 280 Core Hits 1521 | . 28 80 . . . . 38 5 . 24 97 16 5 19 76 35 70 56 53 69 89 138 167 . 71 74 125 186 Critical Kills 66 | . . . . . . . . . . . 4 . . . 1 . 2 2 . . . 8 13 . 6 12 9 9 Critical Parts Destroyed 59 | . . . . . . . . . . . 3 . . . 3 1 2 2 3 . . 12 12 . 9 9 . 3 Critical Strikes 236 | . 5 . . . . . 7 . . 2 12 1 . . 7 7 17 20 11 16 15 24 30 . 16 22 10 14 Burn 100 | . 5 . . . . . 7 . . 2 4 1 . . 3 6 13 16 8 16 15 2 . . . . . 2 Meltdown 15 | . . . . . . . . . . . . . . . . . . . . . . . 1 . . . 9 5 Destroy 119 | . . . . . . . . . . . 8 . . . 4 1 4 4 3 . . 22 29 . 15 22 . 7 Corrupt 1 | . . . . . . . . . . . . . . . . . . . . . . . . . . . 1 . Impale 1 | . . . . . . . . . . . . . . . . . . . . . . . . . 1 . . . Melee Attacks 64 | . . . . . . . . . . . . . . . . . 9 . . . . . 9 . 11 13 4 18 Kinetic 9 | . . . . . . . . . . . . . . . . . . . . . . . . . . 1 4 4 Impact 14 | . . . . . . . . . . . . . . . . . . . . . . . . . . . . 14 Slashing . | . . . . . . . . . . . . . . . . . . . . . . . . . . . . . Piercing 41 | . . . . . . . . . . . . . . . . . 9 . . . . . 9 . 11 12 . . Sneak Attacks 7 | . . . . . . . . . . . . . . . . . 5 . . . . . . . 1 . . 1 Combat Hostiles . | . . . . . . . . . . . . . . . . . . . . . . . . . . . . . Follow-up Attacks . | . . . . . . . . . . . . . . . . . . . . . . . . . . . . . Damage Inflicted 119866 | . 916 4268 10 . 3 42 1543 126 . 1158 4974 1405 297 1998 5375 1783 5089 3829 3876 4671 5515 9622 13022 . 4593 6261 14790 24700 Guns 73399 | . 842 . . . . 17 968 91 . 1158 3499 1405 297 1998 5211 1783 4586 3805 3745 4085 3489 9458 8692 . 4487 5555 3301 4927 Cannons 21103 | . 71 1519 . . . 25 350 . . . . . . . . . 36 . 131 . . 158 138 . . 132 9714 8829 Explosions 24319 | . . 2747 . . . . 134 . . . 1475 . . . 164 . 77 . . 586 2026 . 4164 . . 536 1686 10724 Melee 864 | . . . . . . . . . . . . . . . . . 383 . . . . . 28 . 106 38 89 220 Ramming 181 | . 3 2 10 . 3 . 91 35 . . . . . . . . 7 24 . . . 6 . . . . . . Kinetic 36921 | . 71 . . . . . . . . . 1066 . . . 2988 411 1032 1689 2235 50 68 9062 6584 . 4487 4496 720 1962 Thermal 66550 | . 842 1592 . . . 42 1318 91 . 1158 2433 1405 297 1998 2223 1372 3667 2116 1641 4035 3421 554 2246 . . 1191 13345 19563 Explosive 15452 | . . 2674 . . . . 134 . . . 1475 . . . 164 . . . . 586 2026 . 4164 . . 536 634 3059 Electromagnetic 91 | . . . . . . . . . . . . . . . . . . . . . . . . . . . 91 . Impact 116 | . . . . . . . . . . . . . . . . . . . . . . . . . . . . 116 Slashing . | . . . . . . . . . . . . . . . . . . . . . . . . . . . . . Piercing 555 | . . . . . . . . . . . . . . . . . 383 . . . . . 28 . 106 38 . . Highest Corruption 54 | . . 5 5 5 5 . . . . 2 4 . . 3 12 13 35 1 1 . . 22 54 54 1 16 3 . Average Corruption 12 | . . 4 5 5 5 . . . . 1 2 . . 2 7 12 22 1 1 . . 7 40 54 1 5 3 . Corruption Purged 5 | . . . . . . . . . . . 4 . . . . . . . . . . . . . . 1 . . Corruption Blocked . | . . . . . . . . . . . . . . . . . . . . . . . . . . . . . Effects 599 | . . 13 7 4 1 . . . . 4 10 . . 2 47 28 109 1 8 . . 62 168 21 3 45 66 . Message Errors 126 | . . 3 3 . 1 . . . . 2 1 . . 1 12 8 29 1 1 . . 12 28 4 . 5 15 . Matter Fused 129 | . . 6 2 2 . . . . . . 3 . . . 6 9 17 . 3 . . 11 38 6 . 15 11 . Heat Flow Errors 60 | . . 1 1 . . . . . . 2 1 . . . 8 1 16 . 1 . . 6 11 3 2 4 3 . Energy Discharges 50 | . . . . 2 . . . . . . . . . 1 2 3 14 . 1 . . 4 8 2 . 7 6 . Parts Rejected 2 | . . . . . . . . . . . . . . . . . 1 . . . . . 1 . . . . . Parts Fused 9 | . . . . . . . . . . . . . . . 2 . 1 . . . . 1 1 . . 1 3 . Data Loss (minor) 57 | . . . . . . . . . . . 1 . . . 4 3 9 . . . . 13 8 2 . 5 12 . Data Loss (major) 32 | . . 1 . . . . . . . . 1 . . . 3 1 4 . 2 . . 4 6 3 1 1 5 . Misfires 24 | . . 2 1 . . . . . . . . . . . 1 . 5 . . . . 2 5 . . 3 5 . Alerts 10 | . . . . . . . . . . . 1 . . . 2 . 1 . . . . 1 3 . . . 2 . Misdirections 4 | . . . . . . . . . . . . . . . . . . . . . . 1 3 . . . . . Weapon Failures 96 | . . . . . . . . . . . 2 . . . 7 3 12 . . . . 7 56 1 . 4 4 . Overload Shots . | . . . . . . . . . . . . . . . . . . . . . . . . . . . . . Overflow Damage 2980 | . . 76 . . . 12 32 . . . 37 . . . 11 . 2 . . 21 134 . 77 . . 43 729 1806 Projectiles 1453 | . . 8 . . . 12 . . . . . . . . . . . . . . . . . . . . 535 898 Explosions 1525 | . . 68 . . . . 30 . . . 37 . . . 11 . 2 . . 21 134 . 77 . . 43 194 908 Melee 2 | . . . . . . . 2 . . . . . . . . . . . . . . . . . . . . . Knockbacks 2 | . . . . . . . 1 . . . . . . . . . . 1 . . . . . . . . . . Impact 2 | . . . . . . . 1 . . . . . . . . . . 1 . . . . . . . . . . Kinetic . | . . . . . . . . . . . . . . . . . . . . . . . . . . . . . Secondary . | . . . . . . . . . . . . . . . . . . . . . . . . . . . . . Self-Inflicted Damage 985 | . . 172 . . . . . . . . . . . . 5 . 3 12 . 67 170 3 140 . . 47 86 280 Shots 20 | . . 4 . . . . . . . . . . . . 1 . . . . 1 3 . 2 . . 1 3 5 Rammed 3 | . . . . . . . . . . . . . . . . . 1 1 . . . 1 . . . . . . Targets Rammed 25 | . 2 2 1 . 1 . 10 6 . . . . . . . . 1 1 . . . 1 . . . . . . Kicked 22 | . 2 2 1 . 1 . 10 6 . . . . . . . . . . . . . . . . . . . . Crushed . | . . . . . . . . . . . . . . . . . . . . . . . . . . . . . Highest Temperature 452 | . 300 229 108 . . . 45 12 . 120 235 156 . 448 210 11 347 393 142 426 163 452 319 154 435 354 438 305 Average Temperature 89 | . 85 65 59 . . . 16 8 . 39 96 71 . 101 57 11 88 127 35 76 31 106 90 77 147 113 107 98 Received Heat Transfer 6450 | . 339 306 . . . . 135 9 . . 646 . . 246 426 246 97 290 208 36 298 439 650 . 40 35 1355 649 Effects 16 | . 3 . . . . . . . . . . . . 2 2 . 1 2 . . . . . . 3 1 2 . Energy Bleed 4 | . 1 . . . . . . . . . . . . . . . . 1 . . . . . . . . 2 . Interference 11 | . 2 . . . . . . . . . . . . 2 2 . 1 . . . . . . . 3 1 . . Damage (minor) 1 | . . . . . . . . . . . . . . . . . . 1 . . . . . . . . . . Siege Activations . | . . . . . . . . . . . . . . . . . . . . . . . . . . . . . Martial Activations . | . . . . . . . . . . . . . . . . . . . . . . . . . . . . . Shielding Activations . | . . . . . . . . . . . . . . . . . . . . . . . . . . . . . Robots Disrupted . | . . . . . . . . . . . . . . . . . . . . . . . . . . . . . Combat Hostiles . | . . . . . . . . . . . . . . . . . . . . . . . . . . . . . Robots Corrupted 1 | . . . . . . . 1 . . . . . . . . . . . . . . . . . . . . . Combat Hostiles . | . . . . . . . . . . . . . . . . . . . . . . . . . . . . . Parts Fried 1 | . . . . . . . . . . . . . . . . . . . . . . . . . . . 1 . Impact Corruptions 1 | . . . . . . . 1 . . . . . . . . . . . . . . . . . . . . . Robots Melted 42 | . . . . . . . 2 . . . 1 . . . . . 2 2 1 5 8 . 1 . . . 11 9 Combat Hostiles 39 | . . . . . . . 2 . . . 1 . . . . . 1 2 1 5 8 . 1 . . . 10 8 Parts Melted 305 | . 7 4 . . . . 14 . . 10 18 1 . 7 10 5 24 15 7 52 49 2 7 . . 1 49 23 Heat Transferred 94150 | . 2589 2400 . . . 74 3182 185 . 2093 4846 1668 459 2922 3340 2553 6955 4895 3395 10103 8950 1057 2724 . . 1259 12643 15858 Parts Sabotaged 1 | . . . . . . . . . . . . . . . . . . . . . . . . . . . . 1 Parts Stolen . | . . . . . . . . . . . . . . . . . . . . . . . . . . . . . Parts Stripped 53 | . . . . . . . . . . . . . . . . . . . . . . . . . . 18 35 . Power Chain Reactions . | . . . . . . . . . . . . . . . . . . . . . . . . . . . . . Alert | -11 -10 -9 -9 -9 -8 -8 -8 -8 -8 -6 -6 -6 -6 -6 -5 -5 -5 -4 -4 -3 -3 -3 -3 -3 -2 -2 -2 -1 ------- Run | Yrd Mat Mat Min Exi Min Mat Sto Rec Scr Fac Ext Cet Arc Hub Fac Gar Fac Fac Gar Res Gar Res Arm Lab Res Qua Sec Acc Maximum Alert Level 5 | . . 3 1 . . . 2 1 . . 2 2 1 3 3 3 2 2 3 2 4 3 4 . 2 3 5 5 Low Security (%) 22 | . 100 17 . . 100 100 42 50 . 100 67 . 32 22 . . 6 . . 52 . 35 . . 12 28 . . Level 1 19 | . . 24 100 . . . 46 49 . . 23 24 67 18 31 . 32 85 8 26 . 10 . . 54 13 . . Level 2 28 | . . 35 . . . . 11 . . . 9 75 . 38 48 19 60 14 61 21 45 41 56 . 33 16 16 . Level 3 17 | . . 23 . . . . . . . . . . . 20 19 80 . . 29 . 42 12 29 . . 42 51 . Level 4 7 | . . . . . . . . . . . . . . . . . . . . . 11 . 14 . . . 28 42 Level 5 4 | . . . . . . . . . . . . . . . . . . . . . . . . . . . . 57 High Security . | . . . . . . . . . . . . . . . . . . . . . . . . . . . 2 . Max Security . | . . . . . . . . . . . . . . . . . . . . . . . . . . . . . Sterilizations 1 | . . 1 . . . . . . . . . . . . . . . . . . . . . . . . . . Peak Influence 2707 | . 165 969 375 . . . 499 252 . 90 648 560 295 784 831 1090 666 470 1017 615 1130 1009 1541 . 591 1024 1793 2707 Initial 1100 | . . . 375 . . . . 182 . . 44 358 134 53 383 571 571 301 324 585 417 635 508 . . 300 569 1100 Average 575 | . 57 462 313 . . . 238 180 . 18 195 451 225 461 519 850 438 304 662 247 750 414 767 . 369 530 962 1683 Influence Increases 24571 | . 317 1607 1 . . . 963 251 . 354 1400 367 201 1257 1158 519 1429 803 887 990 723 1870 2100 . 803 1558 2033 2980 Destroy 0b10 Robot/C 12070 | . 220 960 . . . . 400 60 . 160 800 160 80 420 560 300 680 400 425 615 255 705 1050 . 420 680 1240 1480 Destroy 0b10 Robot/NC 903 | . 15 55 . . . . 75 . . 25 60 10 5 30 65 . 60 35 4 . . 108 16 . 60 15 70 195 Destroy Leader 2286 | . 54 204 . . . . 146 . . 62 102 . . 146 146 20 150 100 38 88 . 214 180 . 62 84 194 296 Allied During Kill 1788 | . . . . . . . 232 33 . . 347 170 85 421 . . 84 42 4 105 . 92 136 . . . . 37 Successful Hack 484 | . 12 6 . . . . 18 7 . 39 31 9 . 12 34 14 . 47 28 16 11 97 12 . . 35 56 . Select Force Hacks 310 | . . 60 . . . . . 150 . . . . . 100 . . . . . . . . . . . . . . Disable Machine 1461 | . . 90 . . . . 60 . . 15 15 15 30 60 105 . 60 45 30 36 12 132 216 . 60 315 150 15 Anti-Garrison Action 414 | . . . . . . . . . . . . . . . . 100 . . 163 . 151 . . . . . . . Destroy Structure 3844 | . 1 187 1 . . . 17 1 . 38 30 3 1 38 158 70 260 74 63 82 270 510 490 . 201 399 278 672 Partial Spotted 102 | . . . . . . . 15 . . 15 . . . . 15 15 . 15 . 12 . . . . . 15 . . Lose Combat Pursuer 909 | . 15 45 . . . . . . . . 15 . . 30 75 . 135 45 132 36 24 12 . . . 15 45 285 Influence Decreases 22068 | . 317 644 718 246 . . 494 637 83 264 849 673 381 628 1125 246 1903 955 310 1475 149 2032 1532 1536 268 1081 1282 2240 Entered New Map 7927 | . . . 588 246 . . . 287 83 . 46 283 201 102 401 246 519 315 140 456 139 495 460 1536 . 235 443 706 Time Decay 9216 | . 297 574 130 . . . 474 350 . 244 553 350 160 326 534 . 634 440 . 644 . 627 612 . 268 626 709 664 Lost Part 1630 | . 20 70 . . . . . . . . 70 . . . 40 . 30 80 70 20 10 100 250 . . 70 130 670 Lost Ally 1420 | . . . . . . . 20 . . 20 180 40 20 200 . . 70 120 100 80 . 160 210 . . . . 200 Purge Threat 1875 | . . . . . . . . . . . . . . . 150 . 650 . . 275 . 650 . . . 150 . . Squads Dispatched 165 | . 3 10 . . . 1 . . . 3 6 . . 10 17 . 16 7 . 9 . 15 17 . 3 7 15 26 Investigation 31 | . 1 3 . . . . . . . . 4 . . 3 1 . 5 3 . 5 . 2 2 . . . . 2 Extermination 43 | . . . . . . . . . . 2 . . . 2 3 . 4 3 . . . 4 6 . 1 6 7 5 Reinforcement 41 | . 2 2 . . . 1 . . . 1 2 . . 1 3 . 4 1 . 4 . 7 5 . 2 . 1 5 Assault 27 | . . 5 . . . . . . . . . . . . 2 . . . . . . 1 4 . . 1 4 10 Garrison 23 | . . . . . . . . . . . . . . 4 8 . 3 . . . . 1 . . . . 3 4 Intercept . | . . . . . . . . . . . . . . . . . . . . . . . . . . . . . Searches Triggered . | . . . . . . . . . . . . . . . . . . . . . . . . . . . . . Unchained Authorized 2 | . . . . . . . . . . . . . . . . . . . . . . . . . . 1 . 1 Construction Impeded 15 | . . 1 . . . . . . . . 2 . . . 1 . 2 1 . . . 3 . . 2 . . 3 Haulers Reinforced 5 | . . . . . . . . . . . . . . . 1 . 2 . . 2 . . . . . . . . Active Scanning Responses . | . . . . . . . . . . . . . . . . . . . . . . . . . . . . . Cargo Convoy Interrupts 1 | . . . . . . . . . . . . . . . . . . . . . . 1 . . . . . . Stealth | -11 -10 -9 -9 -9 -8 -8 -8 -8 -8 -6 -6 -6 -6 -6 -5 -5 -5 -4 -4 -3 -3 -3 -3 -3 -2 -2 -2 -1 --------- Run | Yrd Mat Mat Min Exi Min Mat Sto Rec Scr Fac Ext Cet Arc Hub Fac Gar Fac Fac Gar Res Gar Res Arm Lab Res Qua Sec Acc Distress Signals 49 | . 2 4 . . . . 6 . . 1 . 2 . 1 1 . 5 1 . 4 . 10 2 . 2 1 1 6 Communications Jammed 11 | . . . . . . . . . . . . . . . . . . 11 . . . . . . . . . . Distress Signals 5 | . . . . . . . . . . . . . . . . . . 5 . . . . . . . . . . Times Spotted 925 | . 23 70 . . . . 25 2 . 14 40 7 3 27 43 15 53 25 37 53 39 65 81 . 28 47 83 145 Peak Tracking Total 11 | . 5 6 . . . 1 4 1 . 3 6 5 2 7 7 4 4 4 5 8 10 7 7 . 8 5 7 11 Tactical Retreats 46 | . 1 1 . . . . . . . . 1 . . 1 3 . 6 3 6 3 2 1 . . . 1 3 14 Traps | -11 -10 -9 -9 -9 -8 -8 -8 -8 -8 -6 -6 -6 -6 -6 -5 -5 -5 -4 -4 -3 -3 -3 -3 -3 -2 -2 -2 -1 ------- Run | Yrd Mat Mat Min Exi Min Mat Sto Rec Scr Fac Ext Cet Arc Hub Fac Gar Fac Fac Gar Res Gar Res Arm Lab Res Qua Sec Acc Traps Triggered 50 | . 2 3 . . . . 1 . . . 5 . . 2 8 6 4 . 3 3 4 3 1 . 2 1 1 1 Indirectly . | . . . . . . . . . . . . . . . . . . . . . . . . . . . . . Trap Hack Attempts . | . . . . . . . . . . . . . . . . . . . . . . . . . . . . . Triggered . | . . . . . . . . . . . . . . . . . . . . . . . . . . . . . Disarmed 4 | . . . . . . . . . . . . . . . . . . 4 . . . . . . . . . . Reprogrammed . | . . . . . . . . . . . . . . . . . . . . . . . . . . . . . Reused . | . . . . . . . . . . . . . . . . . . . . . . . . . . . . . Traps Extracted . | . . . . . . . . . . . . . . . . . . . . . . . . . . . . . Installed . | . . . . . . . . . . . . . . . . . . . . . . . . . . . . . Triggered . | . . . . . . . . . . . . . . . . . . . . . . . . . . . . . Machines | -11 -10 -9 -9 -9 -8 -8 -8 -8 -8 -6 -6 -6 -6 -6 -5 -5 -5 -4 -4 -3 -3 -3 -3 -3 -2 -2 -2 -1 ---------- Run | Yrd Mat Mat Min Exi Min Mat Sto Rec Scr Fac Ext Cet Arc Hub Fac Gar Fac Fac Gar Res Gar Res Arm Lab Res Qua Sec Acc Machines Disabled 122 | . . 6 . . . . 4 . . 1 1 2 2 4 7 2 4 3 5 3 3 11 18 6 4 21 14 1 Max in Single Turn 3 | . . 2 . . . . 1 . . 1 1 1 . 1 2 1 2 1 1 1 1 1 2 1 1 2 3 1 Garrison Access 8 | . . . . . . . 1 . . . . . . . 1 . . . . 2 . 4 . . . . . . Garrison Relay 6 | . . . . . . . . . . . . . . . . 2 . . 2 . 2 . . . . . . . Network Hub 2 | . . . . . . . . . . . . . . 2 . . . . . . . . . . . . . . Machines Repaired . | . . . . . . . . . . . . . . . . . . . . . . . . . . . . . Machines Dismantled 1 | . . . . . . . 1 . . . . . . . . . . . . . . . . . . . . . Machines Sabotaged 2 | . . . . . . . . . . . . . . 2 . . . . . . . . . . . . . . Overloaded Fab Kills . | . . . . . . . . . . . . . . . . . . . . . . . . . . . . . Hacking | -11 -10 -9 -9 -9 -8 -8 -8 -8 -8 -6 -6 -6 -6 -6 -5 -5 -5 -4 -4 -3 -3 -3 -3 -3 -2 -2 -2 -1 --------- Run | Yrd Mat Mat Min Exi Min Mat Sto Rec Scr Fac Ext Cet Arc Hub Fac Gar Fac Fac Gar Res Gar Res Arm Lab Res Qua Sec Acc Machines Accessed 146 | . 5 9 1 1 . . 7 6 2 5 16 1 . 6 7 3 10 11 2 11 1 17 3 . 1 10 9 2 Terminals 79 | . 5 6 1 . . . 5 1 . 3 14 1 . 5 2 3 3 5 2 1 1 6 1 . 1 6 7 . Fabricators 7 | . . . . . . . . . . . . . . . . . 1 1 . 3 . 1 1 . . . . . Repair Stations 8 | . . . . . . . . . . . . . . . 1 . . 1 . . . 3 . . . 2 1 . Recycling Units 27 | . . 2 . . . . 1 5 . . 2 . . . 1 . 5 3 . 3 . 2 1 . . . . 2 Scanalyzers 9 | . . 1 . . . . . . . 1 . . . . 1 . 1 . . 1 . 1 . . . 2 1 . Garrison Access 13 | . . . . . . . 1 . . 1 . . . 1 2 . . 1 . 3 . 4 . . . . . . Total Hacks 351 | . 12 17 3 1 . . 16 7 4 8 21 2 . 14 23 11 32 27 7 22 4 47 8 . 1 45 17 2 Successful 137 | . 4 5 . 1 . . 7 6 4 2 9 1 . 4 13 1 12 14 3 10 2 19 2 . 1 9 6 2 Failed 209 | . 8 12 3 . . . 9 1 . 6 12 1 . 10 9 10 19 13 4 12 2 27 6 . . 35 10 . Catastrophic 69 | . 2 6 1 . . . 2 1 . 1 5 1 . 3 4 4 4 7 . 4 1 8 2 . . 11 2 . Database Lockouts 5 | . . . . . . . . . . . . . . . 1 . 1 . . . . 1 . . . 1 1 . Manual 140 | . 10 10 . . . . 5 7 . . 3 1 . 12 9 1 19 13 3 11 3 17 2 . . 12 . 2 Terminals 210 | . 12 13 3 . . . 11 2 . 4 19 2 . 12 11 11 12 18 7 2 4 20 5 . 1 29 12 . Fabricators 17 | . . . . . . . . . . . . . . . . . 2 2 . 8 . 3 2 . . . . . Repair Stations 27 | . . . . . . . . . . . . . . . 4 . . 2 . . . 10 . . . 8 3 . Recycling Units 39 | . . 3 . . . . 1 5 . . 2 . . . 1 . 10 4 . 5 . 5 1 . . . . 2 Scanalyzers 30 | . . 1 . . . . . . . 2 . . . . 3 . 8 . . 2 . 4 . . . 8 2 . Garrison Access 23 | . . . . . . . 4 . . 2 . . . 2 4 . . 1 . 5 . 5 . . . . . . Terminal Hacks 53 | . . 3 . 1 . . 5 1 4 1 7 1 . . 5 1 1 8 2 . 1 3 1 . 1 4 3 . Record 7 | . . 1 . 1 . . . . 4 . 1 . . . . . . . . . . . . . . . . . Prototype ID Bank 3 | . . . . . . . 2 . . . . . . . . . . . . . . . . . . 1 . . Open Door 11 | . . . . . . . 1 . . . 6 1 . . . . . . . . . . . . 1 . 2 . Branch Access Points 4 | . . 1 . . . . . . . 1 . . . . 1 . . . . . . 1 . . . . . . Emergency Access Points 3 | . . . . . . . . . . . . . . . . 1 . . 1 . . 1 . . . . . . Terminal Index 1 | . . . . . . . . . . . . . . . 1 . . . . . . . . . . . . . Recycling Unit Index 3 | . . . . . . . . 1 . . . . . . . . . 1 . . . . 1 . . . . . Alert Level 3 | . . . . . . . 1 . . . . . . . 1 . . . . . . . . . . 1 . . Unreport Threat 4 | . . . . . . . . . . . . . . . 1 . 1 . . . . 1 . . . 1 . . Locate Traps 3 | . . . . . . . 1 . . . . . . . . . . 2 . . . . . . . . . . Disarm Traps 1 | . . . . . . . . . . . . . . . . . . 1 . . . . . . . . . . Extermination Status 1 | . . . . . . . . . . . . . . . . . . 1 . . . . . . . . . . Recall Investigation 1 | . . . . . . . . . . . . . . . . . . 1 . . . . . . . . . . Recall Extermination 1 | . . . . . . . . . . . . . . . 1 . . . . . . . . . . . . . Hauler Manifests 2 | . . 1 . . . . . . . . . . . . . . . 1 . . . . . . . . . . Registered Components 1 | . . . . . . . . . . . . . . . . . . 1 . . . . . . . . . . Zone Layout 2 | . . . . . . . . . . . . . . . . . . . . . . . . . . 1 1 . Garrison Registry 1 | . . . . . . . . . . . . . . . . . . . 1 . . . . . . . . . Security Stations 1 | . . . . . . . . . . . . . . . . . . . . . 1 . . . . . . . Fabricator Hacks 4 | . . . . . . . . . . . . . . . . . 2 . . 1 . 1 . . . . . . Network Status 3 | . . . . . . . . . . . . . . . . . 1 . . 1 . 1 . . . . . . Build 1 | . . . . . . . . . . . . . . . . . 1 . . . . . . . . . . . Repair Station Hacks 9 | . . . . . . . . . . . . . . . 2 . . 1 . . . 3 . . . 1 2 . Scan Component 7 | . . . . . . . . . . . . . . . 1 . . 1 . . . 3 . . . 1 1 . Repair 2 | . . . . . . . . . . . . . . . 1 . . . . . . . . . . . 1 . Recycling Unit Hacks 1 | . . . . . . . 1 . . . . . . . . . . . . . . . . . . . . . Retrieve Components 1 | . . . . . . . 1 . . . . . . . . . . . . . . . . . . . . . Scanalyzer 14 | . . . . . . . . . . 1 . . . . 2 . 3 . . . . 3 . . . 4 1 . Insert Component 3 | . . . . . . . . . . . . . . . . . 1 . . . . . . . . 2 . . Analyze 1 | . . . . . . . . . . . . . . . . . . . . . . . . . . 1 . . Retrieve Study 10 | . . . . . . . . . . 1 . . . . 2 . 2 . . . . 3 . . . 1 1 . Garrison Access Hacks 14 | . . . . . . . 1 . . . . . . . 2 . . 1 . 5 . 5 . . . . . . Unlock Access 3 | . . . . . . . . . . . . . . . 1 . . 1 . 1 . . . . . . . . Seal Access 8 | . . . . . . . 1 . . . . . . . 1 . . . . 2 . 4 . . . . . . Coupler Status 3 | . . . . . . . . . . . . . . . . . . . . 2 . 1 . . . . . . Unauthorized Hacks 42 | . 4 2 . . . . . 5 . . 2 . . 4 2 . 6 4 1 4 1 4 1 . . . . 2 Terminals 12 | . 4 . . . . . . . . . . . . 4 1 . 1 . 1 . 1 . . . . . . . Botnet 4 | . . . . . . . . . . . . . . 1 1 . . . 1 . 1 . . . . . . . Operators 1 | . . . . . . . . . . . . . . . . . 1 . . . . . . . . . . . Skim 4 | . 4 . . . . . . . . . . . . . . . . . . . . . . . . . . . Sabotage 3 | . . . . . . . . . . . . . . 3 . . . . . . . . . . . . . . Fabricators 5 | . . . . . . . . . . . . . . . . . . 1 . 2 . 2 . . . . . . Liberate 3 | . . . . . . . . . . . . . . . . . . 1 . 1 . 1 . . . . . . Haulers 2 | . . . . . . . . . . . . . . . . . . . . 1 . 1 . . . . . . Repair Stations . | . . . . . . . . . . . . . . . . . . . . . . . . . . . . . Recycling Units 25 | . . 2 . . . . . 5 . . 2 . . . 1 . 5 3 . 2 . 2 1 . . . . 2 Tunnel 7 | . . 2 . . . . . 5 . . . . . . . . . . . . . . . . . . . . Fedlink 8 | . . . . . . . . . . . 1 . . . 1 . 3 2 . 1 . . . . . . . . Scrapoids 10 | . . . . . . . . . . . 1 . . . . . 2 1 . 1 . 2 1 . . . . 2 Scanalyzers . | . . . . . . . . . . . . . . . . . . . . . . . . . . . . . Garrison Access . | . . . . . . . . . . . . . . . . . . . . . . . . . . . . . Data Cores Recovered 2 | . . . . . . . . . . 1 . . . . . . 1 . . . . . . . . . . . Used . | . . . . . . . . . . . . . . . . . . . . . . . . . . . . . Hacking Detections 96 | . 5 7 1 . . . 6 . . 5 10 1 . 3 5 3 6 7 1 8 1 11 1 . . 10 5 . Full Trace Events 1 | . . . . . . . . . . . 1 . . . . . . . . . . . . . . . . . Feedback Events . | . . . . . . . . . . . . . . . . . . . . . . . . . . . . . Feedback Blocked . | . . . . . . . . . . . . . . . . . . . . . . . . . . . . . Robot Schematics Acquired . | . . . . . . . . . . . . . . . . . . . . . . . . . . . . . Robots Built . | . . . . . . . . . . . . . . . . . . . . . . . . . . . . . Authchips . | . . . . . . . . . . . . . . . . . . . . . . . . . . . . . Time . | . . . . . . . . . . . . . . . . . . . . . . . . . . . . . Total Robot Build Rating . | . . . . . . . . . . . . . . . . . . . . . . . . . . . . . Part Schematics Acquired 1 | . . . . . . . . . . . . . . . . . . . . . . . . . . 1 . . Parts Built 2 | . . . . . . . . . . . . . . . . . 2 . . . . . . . . . . . Authchips . | . . . . . . . . . . . . . . . . . . . . . . . . . . . . . Time 128 | . . . . . . . . . . . . . . . . . 128 . . . . . . . . . . . Total Part Build Rating 16 | . . . . . . . . . . . . . . . . . 16 . . . . . . . . . . . Part Studies Acquired 10 | . . . . . . . . . . 1 . . . . 2 . 2 . . . . 3 . . . 1 1 . Parts Repaired 2 | . . . . . . . . . . . . . . . 1 . . . . . . . . . . . 1 . Time 162 | . . . . . . . . . . . . . . . 108 . . . . . . . . . . . 54 . Parts Recycled . | . . . . . . . . . . . . . . . . . . . . . . . . . . . . . Recycled Matter . | . . . . . . . . . . . . . . . . . . . . . . . . . . . . . Retrieved Matter . | . . . . . . . . . . . . . . . . . . . . . . . . . . . . . Retrieved Components 10 | . . . . . . . 10 . . . . . . . . . . . . . . . . . . . . . Parts Scanalyzed 2 | . . . . . . . . . . . . . . . . . 1 . . . . . . . . 1 . . Part Schematics Acquired 1 | . . . . . . . . . . . . . . . . . . . . . . . . . . 1 . . Parts Damaged . | . . . . . . . . . . . . . . . . . . . . . . . . . . . . . Bothacking | -11 -10 -9 -9 -9 -8 -8 -8 -8 -8 -6 -6 -6 -6 -6 -5 -5 -5 -4 -4 -3 -3 -3 -3 -3 -2 -2 -2 -1 ------------ Run | Yrd Mat Mat Min Exi Min Mat Sto Rec Scr Fac Ext Cet Arc Hub Fac Gar Fac Fac Gar Res Gar Res Arm Lab Res Qua Sec Acc Used RIF Installer 2 | . . . . . . . . . . . . . . . . 1 . . 1 . . . . . . . . . Threat Obfuscator 1 | . . . . . . . . . . . . . . . . . . . 1 . . . . . . . . . Robots Hacked 22 | . . . . . . . . . . . . . . . . . 7 . 9 1 . 3 2 . . . . . Non-combat 12 | . . . . . . . . . . . . . . . . . 7 . 1 1 . 3 . . . . . . Combat 10 | . . . . . . . . . . . . . . . . . . . 8 . . . 2 . . . . . Robot Hacks Applied 37 | . . . . . . . . . . . . . . . . . 16 . 9 2 . 8 2 . . . . . generate_echo 1 | . . . . . . . . . . . . . . . . . 1 . . . . . . . . . . . ignore_repairs 1 | . . . . . . . . . . . . . . . . . 1 . . . . . . . . . . . drop_inventory 2 | . . . . . . . . . . . . . . . . . 1 . . . . 1 . . . . . . purge_threat 12 | . . . . . . . . . . . . . . . . . 5 . . 2 . 5 . . . . . . locate_traps 2 | . . . . . . . . . . . . . . . . . 2 . . . . . . . . . . . block_reporting 1 | . . . . . . . . . . . . . . . . . 1 . . . . . . . . . . . summon_haulers 2 | . . . . . . . . . . . . . . . . . 2 . . . . . . . . . . . recall_investigation 1 | . . . . . . . . . . . . . . . . . 1 . . . . . . . . . . . map_route 1 | . . . . . . . . . . . . . . . . . 1 . . . . . . . . . . . disrupt_area 1 | . . . . . . . . . . . . . . . . . . . 1 . . . . . . . . . reboot_system 1 | . . . . . . . . . . . . . . . . . . . 1 . . . . . . . . . overwrite_iff 5 | . . . . . . . . . . . . . . . . . . . 3 . . . 2 . . . . . formatsys_low 4 | . . . . . . . . . . . . . . . . . 1 . 1 . . 2 . . . . . . formatsys_high 3 | . . . . . . . . . . . . . . . . . . . 3 . . . . . . . . . Relay Couplers Released 28 | . . . . . . . . . . . . . . . . 10 . . 9 1 8 . . . . . . . Machine Destruction 28 | . . . . . . . . . . . . . . . . 10 . . 9 1 8 . . . . . . . Attached 13 | . . . . . . . . . . . . . . . . . 4 . 4 . 1 3 1 . . . . . Fabnet Peak Effective % . | . . . . . . . . . . . . . . . . . . . . . . . . . . . . . Robots Rewired 27 | . . . . . . . . . . 1 13 . . . . . . . 2 . . . 11 . . . . . Allies Hacked 8 | . . . . . . . . . . 1 . . . . . . . 1 . . . 2 2 . . . . 2 Hacks Repelled . | . . . . . . . . . . . . . . . . . . . . . . . . . . . . . Allies | -11 -10 -9 -9 -9 -8 -8 -8 -8 -8 -6 -6 -6 -6 -6 -5 -5 -5 -4 -4 -3 -3 -3 -3 -3 -2 -2 -2 -1 -------- Run | Yrd Mat Mat Min Exi Min Mat Sto Rec Scr Fac Ext Cet Arc Hub Fac Gar Fac Fac Gar Res Gar Res Arm Lab Res Qua Sec Acc Total Allies 118 | . . . . . . . 10 . . 1 27 5 . . . . 11 8 9 5 . 12 18 . . . . 12 Largest Group 16 | . . . . . . . 10 8 8 1 14 16 11 10 . . 5 5 3 5 . 5 6 . . . . 5 Highest-Rated Group 935 | . . . . . . . 173 131 131 29 583 935 701 657 . . 238 235 139 320 . 323 384 . . . . 323 Highest-Rated Ally 159 | . . . . . . . 29 25 25 29 159 159 96 96 . . 50 52 58 64 . 67 64 . . . . 67 Total Orders 13 | . . . . . . . . . 1 . . 5 . 1 . . . . 1 1 . 3 1 . . . . . STAY 9 | . . . . . . . . . 1 . . 4 . 1 . . . . . . . 2 1 . . . . . FOLLOW 1 | . . . . . . . . . . . . 1 . . . . . . . . . . . . . . . . AID 3 | . . . . . . . . . . . . . . . . . . . 1 1 . 1 . . . . . . Ally Attacks 702 | . . . . . . . 37 6 . 4 139 29 11 102 . . 71 39 9 72 . 84 49 . . . . 50 Total Damage 17427 | . . . . . . . 515 96 . 70 2444 632 260 2801 . . 1477 760 243 2020 . 2500 2123 . . . . 1486 Kills 107 | . . . . . . . 7 . . . 16 9 3 18 . . 8 5 1 10 . 14 11 . . . . 5 Allies Corrupted 5 | . . . . . . . 1 . . . 1 . . 1 . . . . . . . . 1 . . . . 1 Allies Melted . | . . . . . . . . . . . . . . . . . . . . . . . . . . . . . Intel | -11 -10 -9 -9 -9 -8 -8 -8 -8 -8 -6 -6 -6 -6 -6 -5 -5 -5 -4 -4 -3 -3 -3 -3 -3 -2 -2 -2 -1 ------- Run | Yrd Mat Mat Min Exi Min Mat Sto Rec Scr Fac Ext Cet Arc Hub Fac Gar Fac Fac Gar Res Gar Res Arm Lab Res Qua Sec Acc Active Infowar (turns) 14861 | . 136 . . . . . . . . 562 621 . . 184 881 19 424 999 289 2101 12 1914 726 . . 1437 3163 1393 Optics 4170 | . . . . . . . . . . . . . . . . . . . . 1 . . . . . 3 3036 1130 Sensors 10846 | . . . . . . . . . . 562 621 . . 184 881 19 331 272 . 2100 12 1914 726 . . 1437 1524 263 IFF 1 | . . . . . . . . . . . . . . . . . . . . 1 . . . . . . . . Seismic 561 | . 136 . . . . . . . . . . . . . . . 93 332 . . . . . . . . . . Jamming 958 | . . . . . . . . . . . . . . . . . . 669 289 . . . . . . . . . ECM 1 | . . . . . . . . . . . . . . . . . . . . 1 . . . . . . . . Robot Analysis Total . | . . . . . . . . . . . . . . . . . . . . . . . . . . . . . Derelict Logs Recovered 2 | . . . 2 . . . . . . . . . . . . . . . . . . . . . . . . . Drone Launches . | . . . . . . . . . . . . . . . . . . . . . . . . . . . . . Drone Recoveries . | . . . . . . . . . . . . . . . . . . . . . . . . . . . . . Exploration | -11 -10 -9 -9 -9 -8 -8 -8 -8 -8 -6 -6 -6 -6 -6 -5 -5 -5 -4 -4 -3 -3 -3 -3 -3 -2 -2 -2 -1 ------------- Run | Yrd Mat Mat Min Exi Min Mat Sto Rec Scr Fac Ext Cet Arc Hub Fac Gar Fac Fac Gar Res Gar Res Arm Lab Res Qua Sec Acc Turns Passed 34857 | . 778 2037 263 214 31 77 1318 799 1826 758 1606 790 325 731 1519 690 2221 1080 1469 2321 677 2361 2011 420 607 2144 3253 2531 Spaces Moved 18511 | 1 383 970 138 178 15 37 572 402 1219 627 950 441 96 589 1078 471 1366 674 748 1490 292 1353 941 173 292 1110 1136 769 Core 87 | . . . . . . . . . . . . . . . . . . . . . . . 5 . . . . 82 Treads 2 | . . . . . . . . . . . . . . . . . . . . . . . 1 . . . 1 . Legs 3413 | 1 383 970 138 178 15 37 572 402 717 . . . . . . . . . . . . . . . . . . . Wheels 15009 | . . . . . . . . . 502 627 950 441 96 589 1078 471 1366 674 748 1490 292 1353 935 173 292 1110 1135 687 Hover . | . . . . . . . . . . . . . . . . . . . . . . . . . . . . . Flight . | . . . . . . . . . . . . . . . . . . . . . . . . . . . . . Fastest Speed 50 | 120 120 120 190 120 190 190 190 190 90 90 90 90 100 100 90 100 100 120 120 120 120 110 110 150 145 145 161 50 Average Speed 137 | 120 146 175 190 120 190 190 190 190 146 90 90 98 100 100 101 100 117 120 123 122 128 128 148 150 150 158 205 189 Slowest Speed 800 | 120 190 190 190 120 190 190 260 190 190 90 90 100 100 100 120 100 120 150 130 130 130 130 650 150 160 200 800 275 Overloaded Moves . | . . . . . . . . . . . . . . . . . . . . . . . . . . . . . Propulsion Burnouts . | . . . . . . . . . . . . . . . . . . . . . . . . . . . . . Robots Hopped 1 | . . . . . . . . . . . . . . . . . . . . 1 . . . . . . . . Potential Cave-ins 9 | . . . . . . . . . . . . . . . . . 5 . . . . . . . . . . 4 Cave-ins Triggered 2 | . . . . . . . . . . . . . . . . . 1 . . . . . . . . . . 1 Teleports 6 | . . . . . . . . . . . . . . . . . . . . . . . . . . . 2 4 Exploration Rate (%) 47 | 2 68 77 42 54 9 4 92 78 47 17 82 65 66 48 20 50 43 20 64 42 42 44 52 71 9 87 64 18 Regions Visited 28 Branch Regions 14 Pre-discovered Areas 9 | . . 2 . 1 . . . 5 . . . . . . 1 . . . . . . . . . . . . . Known Exits Taken 11 | . . 1 . . . 1 1 . . 1 . . . . 1 . . 1 . 1 . 1 1 1 1 . . . Unknown Exits Taken 14 | 1 1 . 1 1 1 . . 1 1 . 1 1 1 1 . . 1 . . . . . . . . 1 1 . Scrap Searched 1 | . . . . . . . . . 1 . . . . . . . . . . . . . . . . . . . Spaces Dug 349 | . . 9 . . . . 10 . . 1 8 . . 3 20 . 29 2 . 3 136 16 16 . 9 38 24 25 Terrain Destroyed 2149 | . . 201 1 . . . 15 . . 45 34 . . 21 91 2 170 34 28 32 209 300 331 . 78 230 86 241 Melee 31 | . . . . . . . . . . . . . . . . . 3 . . . . . 8 . 9 4 . 7 Projectile 1226 | . . 42 1 . . . 9 . . 11 12 . . 21 47 2 106 34 27 8 10 299 217 . 69 201 73 37 AOE 888 | . . 159 . . . . 6 . . 34 22 . . . 43 . 61 . . 24 199 . 105 . . 25 13 197 Terrain Rammed . | . . . . . . . . . . . . . . . . . . . . . . . . . . . . . Walls Destroyed . | . . . . . . . . . . . . . . . . . . . . . . . . . . . . . Machines Disabled . | . . . . . . . . . . . . . . . . . . . . . . . . . . . . . Actions | -11 -10 -9 -9 -9 -8 -8 -8 -8 -8 -6 -6 -6 -6 -6 -5 -5 -5 -4 -4 -3 -3 -3 -3 -3 -2 -2 -2 -1 --------- Run | Yrd Mat Mat Min Exi Min Mat Sto Rec Scr Fac Ext Cet Arc Hub Fac Gar Fac Fac Gar Res Gar Res Arm Lab Res Qua Sec Acc Total 25085 | . 502 1160 138 179 17 42 708 426 1268 772 1609 777 316 674 1309 625 1784 860 1139 1816 444 1806 1396 312 414 1410 1721 1461 Wait 2220 | . 10 8 . . . 2 5 14 . 65 344 266 212 33 46 33 70 33 172 78 16 158 73 89 22 30 201 240 Move 18483 | . 382 969 137 177 14 36 571 401 1218 626 949 440 95 588 1077 470 1364 674 747 1488 291 1353 940 172 291 1109 1135 769 Hop 1 | . . . . . . . . . . . . . . . . . . . . 1 . . . . . . . . Pick Up 423 | . 12 21 . . . 1 17 1 15 9 20 11 . 3 13 16 29 17 20 26 4 18 41 9 5 26 44 45 Fast Attach 344 | . 6 8 . . . . 10 . 6 3 12 14 2 . 18 3 15 15 7 21 3 5 30 . 9 42 36 79 Attach 211 | . 2 8 . . 2 2 . . 2 4 9 1 . . 7 4 9 9 9 6 3 7 24 3 2 11 33 54 Detach 82 | . 1 1 . . . . 1 . 3 . 5 . . . 3 2 6 3 1 5 2 . 10 . 1 7 10 21 Swap 551 | . 10 37 . . . . 14 . 3 15 25 4 . 8 32 5 48 16 25 42 9 77 44 6 30 35 45 21 Drop 553 | . 20 25 . 2 . . 30 1 21 11 20 26 2 4 22 15 32 23 15 48 5 16 36 8 11 58 56 46 Fire 1768 | . 57 81 . . . 1 42 3 . 29 83 15 5 30 91 47 176 69 102 77 79 155 165 25 32 79 157 168 Melee 64 | . . . . . . . . . . . . . . . . . 9 . . . . . 9 . 11 13 4 18 Ram 2 | . . . . . . . . . . . . . . . . . 1 1 . . . . . . . . . . Kick 22 | . 2 2 1 . 1 . 10 6 . . . . . . . . . . . . . . . . . . . . Crush . | . . . . . . . . . . . . . . . . . . . . . . . . . . . . . Escape Stasis 183 | . . . . . . . . . . . 24 . . 8 . 30 25 . 24 24 32 16 . . . . . . Rewire 170 | . . . . . . . . . . 10 118 . . . . . . . 17 . . 1 24 . . . . . Trap . | . . . . . . . . . . . . . . . . . . . . . . . . . . . . . Miscellaneous 8 | . . . . . . . 8 . . . . . . . . . . . . . . . . . . . . . Route ------- -11/Scrapyard -10/Materials (discovered 3 exits: *Mat / [*Min x2]) -9/Materials (discovered 5 exits: [*Mat x3] / *Min x2) -9/Mines (discovered 2 exits: [*Mat] / *Exi) -9/Exiles -8/Mines -8/Materials -8/Storage (discovered 2 exits: [*Fac] / *Rec) -8/Recycling (discovered 2 exits: *Fac / *Scr) -8/Scraptown -6/Factory (discovered 4 exits: Low x2 / *Ext x2) -6/Extension (discovered 2 exits: *Fac / *Cet) -6/Cetus (discovered 2 exits: *Fac / [*Arc]) -6/Archives -6/Hub_04(d) (discovered 2 exits: *Fac x2) -5/Factory (discovered 3 exits: Upp x2 / Gar) -5/Garrison -5/Factory (discovered 2 exits: *Fac x2) -4/Factory (discovered 2 exits: *Res / Gar) -4/Garrison (discovered 3 exits: *Res x3) -3/Research (discovered 4 exits: *Res x3 / Gar) -3/Garrison (discovered 2 exits: *Res x2) -3/Research (discovered 3 exits: *Arm / Tes x2) -3/Armory -3/Lab -2/Research -2/Quarantine (discovered 2 exits: *Sec / [*Frg]) -2/Section 7 -1/Access History --------- Turn | Location | Event 1 | -11/Scrapyard | Discovered new exit (range 0) 1 | -11/Scrapyard | Entered Materials 112 | -10/Materials | Discovered new exit (range 16) 304 | -10/Materials | Core integrity fell below 50% 392 | -10/Materials | Discovered new exit (range 8) 504 | -10/Materials | Core integrity fell below 20% 590 | -10/Materials | Build established: Scavenger-Mutant 694 | -10/Materials | Discovered new exit (range 13) 779 | -10/Materials | Entered another Materials area 779 | -9/Materials | Evolved 2 slots: Propulsion x1, Utility x1 940 | -9/Materials | Identified exit to Mines 972 | -9/Materials | Build established: Mutant 1267 | -9/Materials | Discovered new exit (range 16) 1490 | -9/Materials | Build established: Scavenger-Mutant 1661 | -9/Materials | Destroyed 7 combat bots 1979 | -9/Materials | First assault squad dispatched 2135 | -9/Materials | Core integrity fell below 50% 2163 | -9/Materials | Destroyed 9 combat bots 2166 | -9/Materials | Lost 5 parts (1p1n3u) 2385 | -9/Materials | Discovered new exit (range 12) 2638 | -9/Materials | Discovered new exit (range 15) 2786 | -9/Materials | Sterilization system engaged 2786 | -9/Materials | Non-combat units ordered to evacuate 2816 | -9/Materials | Entered Mines 2991 | -9/Mines | Discovered new exit (range 8) 3071 | -9/Mines | Deemed a non-threat by the Exiles lab entrance 3071 | -9/Mines | Discovered new exit (range 5) 3079 | -9/Mines | Entered Exiles 3112 | -9/Exiles | Met 8R-AWN 3132 | -9/Exiles | Met EX-HEX 3167 | -9/Exiles | Met EX-BIN 3209 | -9/Exiles | Met EX-DEC 3214 | -9/Exiles | Learned location of Zion (-6) 3276 | -9/Exiles | Discovered new exit (range 14) 3293 | -9/Exiles | Entered Mines 3299 | -8/Mines | Discovered new exit (range 13) 3324 | -8/Mines | Entered Materials 3324 | -8/Materials | Evolved 2 slots: Utility x1, Weapon x1 3325 | -8/Materials | Identified exit to Storage 3401 | -8/Materials | Entered Storage 3402 | -8/Storage | Identified exit to Recycling 3618 | -8/Storage | Build established: Scavenger-Gunner 3833 | -8/Storage | Assisted by bots powering up and referring to "LRC-V3" 4136 | -8/Storage | Build established: Commander-Gunner 4259 | -8/Storage | Discovered new exit (range 13) 4540 | -8/Storage | Build established: Commander-Tank 4692 | -8/Storage | Used back door to open Recycling access 4719 | -8/Storage | Entered Recycling 4719 | -8/Recycling | Accompanied by 8 allies 5029 | -8/Recycling | Discovered new exit (range 11) 5454 | -8/Recycling | Scanned before Scraplab entrance 5482 | -8/Recycling | Entered Scraplab 5497 | -8/Recycling | Discovered new exit (range 4) 5518 | -8/Recycling | Entered Scraptown 5518 | -8/Scraptown | Accompanied by 8 allies 5707 | -8/Scraptown | Visited UFD Registry 5707 | -8/Scraptown | Registered with UFD as "Cogbot" 5746 | -8/Scraptown | Visited Chapter 10 5794 | -8/Scraptown | Received an X-ray algorithm 5796 | -8/Scraptown | Visited Observation Area 5822 | -8/Scraptown | Visited Science Testing Area 5870 | -8/Scraptown | Visited Junk Repository 5949 | -8/Scraptown | Visited Scrap Suit Storage 5973 | -8/Scraptown | Visited Infowarlord's Domain 5998 | -8/Scraptown | Visited Curators Association 6066 | -8/Scraptown | Visited Junk Repository 6144 | -8/Scraptown | Visited Modified Component R&D 6653 | -8/Scraptown | Found Scrap Suit 6965 | -8/Scraptown | Build established: Commander-Scrapper 7022 | -8/Scraptown | Found Scrap Suit 7046 | -8/Scraptown | Found Exp. Sensor Array 7219 | -8/Scraptown | Discovered new exit (range 3) 7286 | -8/Scraptown | Met Optimus 7286 | -8/Scraptown | Accepted into 0bPrime 7344 | -8/Scraptown | Entered Factory 7344 | -6/Factory | Evolved 4 slots: Utility x3, Weapon x1 7648 | -6/Factory | Build established: Scrapper 8085 | -6/Factory | Identified exit to Lower Caves 8085 | -6/Factory | Identified exit to Extension 8102 | -6/Factory | Entered Extension 8135 | -6/Extension | Loaded intel: 2 recycling unit locations 8165 | -6/Extension | Scrapoid reinforcements arrived 8167 | -6/Extension | Attached CPS modules to 06E02-D. 8169 | -6/Extension | Attached CPS modules to 06E02-D. 8172 | -6/Extension | Attached CPS modules to 06E02-D. 8174 | -6/Extension | Attached CPS modules to 06E04-D. 8208 | -6/Extension | Found Scrap Suit 8248 | -6/Extension | Rescued a captive Derelict 8254 | -6/Extension | Rescued a captive Derelict 8344 | -6/Extension | Rescued a captive Derelict 8479 | -6/Extension | Build established: Scavenger-Scrapper 8752 | -6/Extension | Disrupted transfer network 8952 | -6/Extension | Spotted B-75 Beast 8974 | -6/Extension | Destroyed B-75 Beast 9004 | -6/Extension | Lost 3 allies 9009 | -6/Extension | Spotted B-75 Beast 9048 | -6/Extension | Lost 3 allies 9054 | -6/Extension | Destroyed B-75 Beast 9087 | -6/Extension | Lost 6 parts (1n2u3w) 9095 | -6/Extension | Destroyed 8 combat bots 9096 | -6/Extension | Found Scrap Suit 9354 | -6/Extension | Rescued a captive Derelict 9355 | -6/Extension | Rescued a captive Derelict 9390 | -6/Extension | Rescued a captive Derelict 9391 | -6/Extension | Rescued a captive Derelict 9497 | -6/Extension | Rescued a captive Derelict 9544 | -6/Extension | Rescued A7 9662 | -6/Extension | Discovered new exit (range 10) 9663 | -6/Extension | Discovered new exit (range 6) 9708 | -6/Extension | Entered Cetus 9708 | -6/Cetus | Accompanied by 13 allies (A7) 9713 | -6/Cetus | Acquired a Cetus Manufacturing Module code from A7 9724 | -6/Cetus | Spotted Cetus Guard 9724 | -6/Cetus | Spotted Cetus Guard 9726 | -6/Cetus | Allies destroyed Cetus Guard 9727 | -6/Cetus | Spotted Cetus Guard 9728 | -6/Cetus | Spotted Cetus Guard 9731 | -6/Cetus | Allies destroyed Cetus Guard 9734 | -6/Cetus | Build established: Commander-Scrapper 9736 | -6/Cetus | Allies destroyed Cetus Guard 9738 | -6/Cetus | Allies destroyed Cetus Guard 9858 | -6/Cetus | Started Cetus Manufacturing Module 9883 | -6/Cetus | Manufactured an Enhanced Grunt 9883 | -6/Cetus | Discovered new exit (range 15) 9908 | -6/Cetus | Manufactured an Enhanced Grunt 9910 | -6/Cetus | Spotted Cetus Guard 9925 | -6/Cetus | Spotted Cetus Guard 9927 | -6/Cetus | Allies destroyed Cetus Guard 9933 | -6/Cetus | Manufactured an Enhanced Grunt 9948 | -6/Cetus | Discovered new exit (range 15) 9954 | -6/Cetus | Met Revision 17 9958 | -6/Cetus | Manufactured an Enhanced Grunt 9983 | -6/Cetus | Manufactured an Enhanced Grunt 10103 | -6/Cetus | Attached CPS modules to A7. 10184 | -6/Cetus | Murdered A7 10214 | -6/Cetus | Extracted ID and sensor layout for unrecognized location from A7's data core 10226 | -6/Cetus | Found Prototype Protection 10226 | -6/Cetus | Identified Med. Regenerative Plating 10458 | -6/Cetus | Security sweep announced 10498 | -6/Cetus | Entered Archives 10498 | -6/Archives | Accompanied by 11 allies 10788 | -6/Archives | Discovered new exit (range 16) 10823 | -6/Archives | Entered Hub_04(d) 10823 | -6/Hub_04(d) | Accompanied by 10 allies 10908 | -6/Hub_04(d) | Discovered new exit (range 8) 10972 | -6/Hub_04(d) | Garrison activated, responded to threat 11116 | -6/Hub_04(d) | Garrison activated, responded to threat 11182 | -6/Hub_04(d) | Spotted B-75 Beast 11237 | -6/Hub_04(d) | Lost 3 allies 11275 | -6/Hub_04(d) | Network Hub disabled 11295 | -6/Hub_04(d) | Build established: Scavenger-Scrapper 11362 | -6/Hub_04(d) | Lost 3 allies 11509 | -6/Hub_04(d) | Network Hub disabled 11538 | -6/Hub_04(d) | Discovered new exit (range 4) 11554 | -6/Hub_04(d) | Entered Factory 11554 | -5/Factory | Evolved 2 slots: Power x1, Utility x1 11698 | -5/Factory | Loaded intel: 8 recycling unit locations 11698 | -5/Factory | Learned location of Protoforge (-2) 11736 | -5/Factory | Garrison activated, responded to threat 11867 | -5/Factory | Found Prototype Launcher 11900 | -5/Factory | Identified exit to Upper Caves 12172 | -5/Factory | Destroyed 9 combat bots 12400 | -5/Factory | Repaired Centrium Medium Armor Plating? 12587 | -5/Factory | System corruption reached 10% 12754 | -5/Factory | First assault squad dispatched 12798 | -5/Factory | Central database locked down 12877 | -5/Factory | Garrison activated, responded to threat 13070 | -5/Factory | Identified exit to Garrison 13073 | -5/Factory | Entered Garrison 13151 | -5/Garrison | Triggered checkpoint 13173 | -5/Garrison | Triggered checkpoint 13258 | -5/Garrison | Installed Relay Interface Framework 13434 | -5/Garrison | Garrison Relay disabled 13449 | -5/Garrison | Identified Rocket Array 13583 | -5/Garrison | Discovered new exit (range 10) 13605 | -5/Garrison | Triggered checkpoint 13720 | -5/Garrison | Garrison Relay disabled 13763 | -5/Garrison | Entered Factory 13832 | -5/Factory | Loaded intel: 8 recycling unit locations 13859 | -5/Factory | Garrison activated, responded to threat 14037 | -5/Factory | Discovered new exit (range 3) 14069 | -5/Factory | Build established: Bothacker-Scrapper 14099 | -5/Factory | Scrapoids reinforcements arrived? 14118 | -5/Factory | Attached CPS modules to 05F07-D. 14120 | -5/Factory | Attached CPS modules to 05F10-D. 14145 | -5/Factory | Found Scrap Suit 14361 | -5/Factory | Crushed by falling debris 14670 | -5/Factory | Build established: Scavenger-Scrapper 15001 | -5/Factory | Scrapoids reinforcements arrived? 15031 | -5/Factory | Found Scrap Suit 15032 | -5/Factory | Fabricated Linear Accelerator? 15064 | -5/Factory | Attached CPS modules to 05F11-D. 15066 | -5/Factory | Attached CPS modules to 05F12-D. 15099 | -5/Factory | Found Scrap Suit 15100 | -5/Factory | Murdered 3 allies 15121 | -5/Factory | Discovered new exit (range 16) 15186 | -5/Factory | Central database locked down 15786 | -5/Factory | Core integrity fell below 50% 15984 | -5/Factory | System corruption reached 30% 15984 | -5/Factory | Entered another Factory area 15984 | -4/Factory | Evolved 2 slots: Utility x2 16400 | -4/Factory | Lost 3 parts (2u1w) 16465 | -4/Factory | Loaded intel: 8 recycling unit locations 16528 | -4/Factory | Scrapoids reinforcements arrived? 16580 | -4/Factory | Attached CPS modules to 04F18-D. 16583 | -4/Factory | Attached CPS modules to 04F19-D. 16617 | -4/Factory | Found Scrap Suit 16663 | -4/Factory | Lost 3 allies 16764 | -4/Factory | Spotted B-86 Titan 16770 | -4/Factory | Destroyed B-86 Titan 16797 | -4/Factory | Discovered new exit (range 15) 16919 | -4/Factory | Lost 3 allies 16959 | -4/Factory | Destroyed 7 combat bots 17064 | -4/Factory | Identified exit to Garrison 17064 | -4/Factory | Entered Garrison 17143 | -4/Garrison | Triggered checkpoint 17192 | -4/Garrison | Garrison Relay disabled 17316 | -4/Garrison | Triggered checkpoint 17384 | -4/Garrison | Lost 3 parts (3u) 17391 | -4/Garrison | Spotted B-86 Titan 17656 | -4/Garrison | Triggered checkpoint 17669 | -4/Garrison | Triggered checkpoint 17693 | -4/Garrison | Destroyed B-86 Titan 17718 | -4/Garrison | Found Hvy. Reflective Plating 17877 | -4/Garrison | Discovered new exit (range 10) 17927 | -4/Garrison | Discovered new exit (range 69) 17927 | -4/Garrison | Discovered new exit (range 37) 17927 | -4/Garrison | Discovered new exit (range 14) 18035 | -4/Garrison | Build established: Scavenger-Tank 18037 | -4/Garrison | Expanded RIF knowledge: Threat Obfuscation 18060 | -4/Garrison | Triggered checkpoint 18288 | -4/Garrison | Garrison Relay disabled 18533 | -4/Garrison | Entered Research 18533 | -3/Research | Accompanied by 3 allies 18533 | -3/Research | Evolved 2 slots: Utility x1, Weapon x1 18733 | -3/Research | Revision forces began assault on 0b10 18750 | -3/Research | Met up with Revision 17++ 19104 | -3/Research | Lost 3 allies 19218 | -3/Research | Discovered new exit (range 16) 19233 | -3/Research | Research terminal network offline 19281 | -3/Research | Discovered new exit (range 14) 19286 | -3/Research | Identified exit to Research 19417 | -3/Research | Loaded intel: 5 recycling unit locations 19517 | -3/Research | Spotted Striker 19524 | -3/Research | Destroyed Striker 19575 | -3/Research | Lost 4 allies 19684 | -3/Research | Spotted Striker 19697 | -3/Research | Destroyed Striker 19722 | -3/Research | Spotted Executioner 19724 | -3/Research | Destroyed Executioner 19768 | -3/Research | Lost 3 allies 19845 | -3/Research | Build established: Bothacker-Skirmisher 20184 | -3/Research | Scrapoid reinforcements arrived 20193 | -3/Research | Attached CPS modules to 03R25-D. 20195 | -3/Research | Attached CPS modules to 03R23-D. 20219 | -3/Research | Found Scrap Suit 20251 | -3/Research | Found Scrap Suit 20289 | -3/Research | Discovered exit to Research (range 11) 20300 | -3/Research | Found Prototype Processor 20300 | -3/Research | Identified Exp. Core Analyzer 20314 | -3/Research | Found Prototype Device 20315 | -3/Research | Identified Adv. Kinecellerator 20320 | -3/Research | Found Exp. Core Analyzer 20518 | -3/Research | Spotted Executioner 20522 | -3/Research | Spotted Striker 20524 | -3/Research | Destroyed Executioner 20525 | -3/Research | Build established: Scavenger-Tank 20528 | -3/Research | Destroyed Striker 20602 | -3/Research | Spotted Striker 20603 | -3/Research | Spotted Striker 20615 | -3/Research | Destroyed Striker 20717 | -3/Research | Spotted Striker 20725 | -3/Research | Destroyed Striker 20745 | -3/Research | Lost 6 allies 20750 | -3/Research | Spotted Executioner 20751 | -3/Research | Spotted Striker 20755 | -3/Research | Destroyed Executioner 20757 | -3/Research | Spotted Executioner 20759 | -3/Research | Spotted Striker 20759 | -3/Research | Destroyed Executioner 20791 | -3/Research | Destroyed Striker 20815 | -3/Research | Destroyed 8 combat bots 20851 | -3/Research | Spotted Striker 20852 | -3/Research | Spotted Striker 20854 | -3/Research | Identified exit to Garrison 20854 | -3/Research | Entered Garrison 21010 | -3/Garrison | Triggered checkpoint 21033 | -3/Garrison | Assembled breached garrison interior 21103 | -3/Garrison | Destroyed 8 combat bots 21118 | -3/Garrison | Garrison Relay disabled 21165 | -3/Garrison | Learned Research security intel 21356 | -3/Garrison | Destroyed 17 combat bots 21389 | -3/Garrison | Garrison Relay disabled 21423 | -3/Garrison | Discovered new exit (range 10) 21466 | -3/Garrison | Discovered new exit (range 5) 21481 | -3/Garrison | Identified exit to Research 21531 | -3/Garrison | Entered Research 21823 | -3/Research | Found Exp. Hacking Suite 21825 | -3/Research | Found Exp. Thermal Shield 21903 | -3/Research | Build established: Scavenger-Scrapper 21958 | -3/Research | Found Prototype Launcher 21987 | -3/Research | Central database locked down 22036 | -3/Research | Spotted B-86 Titan 22061 | -3/Research | Destroyed B-86 Titan 22253 | -3/Research | Cargo convoy interrupted 22372 | -3/Research | Scrapoid reinforcements arrived 22402 | -3/Research | P-80 Master assimilated allied 03R27-D 22443 | -3/Research | Lost 4 allies 22449 | -3/Research | Found Scrap Suit 22680 | -3/Research | Scrapoids reinforcements arrived? 22686 | -3/Research | Garrison activated, responded to threat 22754 | -3/Research | Lost 4 allies 22756 | -3/Research | Identified Hellfire Missile Launcher 22969 | -3/Research | Spotted B-86 Titan 22981 | -3/Research | Destroyed B-86 Titan 23241 | -3/Research | Identified exit to Armory 23241 | -3/Research | Identified exit to Testing 23676 | -3/Research | System corruption reached 10% 23781 | -3/Research | First assault squad dispatched 23892 | -3/Research | Entered Armory 23921 | -3/Armory | Lost 7 parts (1p2u4w) 24411 | -3/Armory | Lost 3 parts (1u2w) 24440 | -3/Armory | System corruption reached 30% 24482 | -3/Armory | Lost 14 parts (3p1n6u4w) 24600 | -3/Armory | Found Fusion Bomb Launcher 24603 | -3/Armory | Found Fusion Bomb Launcher 24609 | -3/Armory | Found Fusion Bomb Launcher 24612 | -3/Armory | Found Fusion Bomb Launcher 24642 | -3/Armory | First assault squad dispatched 24874 | -3/Armory | Lost 3 allies 24886 | -3/Armory | Core integrity fell below 50% 24965 | -3/Armory | Scrapoids reinforcements arrived? 25000 | -3/Armory | Found Exp. Signal Interpreter 25072 | -3/Armory | Lost 4 allies 25097 | -3/Armory | Destroyed 9 combat bots 25111 | -3/Armory | Found Scrap Suit 25191 | -3/Armory | Found Prototype Launcher 25191 | -3/Armory | Identified Adv. Micro-nuke Launcher 25195 | -3/Armory | Found Adv. Micro-nuke Launcher 25667 | -3/Armory | Lost 3 allies 25855 | -3/Armory | Discovered new exit (range 5) 25874 | -3/Armory | Destroyed 15 combat bots 25901 | -3/Armory | Identified exit to Lab 25903 | -3/Armory | Entered Lab 25903 | -3/Lab | Discovered exit to Research (range 9) 25932 | -3/Lab | Hidden lab's door opened automatically 25932 | -3/Lab | Sensor layout match revealed 25933 | -3/Lab | Gained access to the hidden lab's interior 26070 | -3/Lab | Found Alien Artifact 26085 | -3/Lab | Found Alien Artifact 26094 | -3/Lab | Found Alien Artifact 26095 | -3/Lab | Identified Integrated Mediator 26095 | -3/Lab | Installed Integrated Mediator, increased core attachment efficiency 26106 | -3/Lab | Found Alien Artifact 26161 | -3/Lab | Found Prototype Energy Cannon 26165 | -3/Lab | Found Prototype Energy Gun 26174 | -3/Lab | Found Med. Regenerative Plating 26179 | -3/Lab | Found Prototype Hackware 26297 | -3/Lab | Identified Hyp. EM Gauss Rifle 26305 | -3/Lab | Identified Core Reset Matrix 26305 | -3/Lab | Identified Transdimensional Reconstructor 26305 | -3/Lab | Identified Core Regenerator 26305 | -3/Lab | Used Core Reset Matrix 26310 | -3/Lab | Discovered exit to Research (range 9) 26323 | -3/Lab | Entered Research 26323 | -2/Research | Evolved 2 slots: Power x1, Utility x1 26390 | -2/Research | Destroyed 7 combat bots 26918 | -2/Research | Identified Quantum Router 26920 | -2/Research | Discovered new exit (range 9) 26929 | -2/Research | Identified exit to Quarantine 26930 | -2/Research | Entered Quarantine 26931 | -2/Quarantine | Detected hypermatrix surge 26931 | -2/Quarantine | Sensed 15 artifacts in vicinity 27099 | -2/Quarantine | Found Subatomic Replicator 27132 | -2/Quarantine | Cryocooling Duct disabled 27147 | -2/Quarantine | Ambient heat levels rising (+20) 27147 | -2/Quarantine | Non-combat units ordered to evacuate 27412 | -2/Quarantine | Found Transdimensional Reconstructor 27419 | -2/Quarantine | Found Hpw. Transdimensional Reconstructor 27421 | -2/Quarantine | Found Hpw. Transdimensional Reconstructor 27434 | -2/Quarantine | Found Dimensional Node Initializer 27585 | -2/Quarantine | Central database locked down 27677 | -2/Quarantine | Destroyed 8 combat bots 27734 | -2/Quarantine | Identified Potential Cannon 28089 | -2/Quarantine | Found Prototype Processor 28089 | -2/Quarantine | Identified Spectral Analyzer 28171 | -2/Quarantine | System corruption reached 10% 28254 | -2/Quarantine | Discovered new exit (range 16) 28320 | -2/Quarantine | Found Phase Armor 28430 | -2/Quarantine | First assault squad dispatched 28435 | -2/Quarantine | Found Matter Drive 28584 | -2/Quarantine | Found Core Reset Matrix 28606 | -2/Quarantine | Unchained authorized (6S-H0T) 28707 | -2/Quarantine | Sensed 8 artifacts in vicinity 28708 | -2/Quarantine | Found Core Stripper 28797 | -2/Quarantine | Lost 3 parts (2u1w) 28798 | -2/Quarantine | Spotted Fortress 28810 | -2/Quarantine | Destroyed Fortress 28821 | -2/Quarantine | Found Prototype Protection 28821 | -2/Quarantine | Identified Centrium Heavy Armor Plating 28845 | -2/Quarantine | Found Prototype Device 28845 | -2/Quarantine | Identified Exp. EM Shield 28866 | -2/Quarantine | Found Prototype Device 28866 | -2/Quarantine | Identified Thermal Barrier 28870 | -2/Quarantine | Found Prototype Device 28870 | -2/Quarantine | Identified Exp. Force Field 28879 | -2/Quarantine | Found Unknown Protection 28879 | -2/Quarantine | Identified Hvy. Insulated Plating 29060 | -2/Quarantine | Build established: Scavenger-Tank 29066 | -2/Quarantine | Discovered new exit (range 5) 29066 | -2/Quarantine | Discovered new exit (range 6) 29074 | -2/Quarantine | Entered Section 7 29075 | -2/Section 7 | Detected hypermatrix surge 29075 | -2/Section 7 | Sensed 22 artifacts in vicinity 29157 | -2/Section 7 | Repaired Coolant Network 29199 | -2/Section 7 | Spotted S7 Guard 29219 | -2/Section 7 | Found Core Physics Calibrator 29248 | -2/Section 7 | Destroyed S7 Guard 29286 | -2/Section 7 | Found Prototype Protection 29286 | -2/Section 7 | Identified Hvy. Regenerative Plating 29324 | -2/Section 7 | First assault squad dispatched 29610 | -2/Section 7 | Garrison activated, responded to threat 29945 | -2/Section 7 | Spotted S7 Guard 30004 | -2/Section 7 | Found Core Membrane 30005 | -2/Section 7 | Warped through subspace 30007 | -2/Section 7 | Installed Core Membrane, gained immunity to corruption 30090 | -2/Section 7 | Central database locked down 30114 | -2/Section 7 | Spotted S7 Guard 30142 | -2/Section 7 | Destroyed S7 Guard 30151 | -2/Section 7 | Spotted B-90 Cyclops 30161 | -2/Section 7 | Core integrity fell below 50% 30161 | -2/Section 7 | Warped through subspace 30184 | -2/Section 7 | Found Hpw. Transdimensional Reconstructor 30189 | -2/Section 7 | Found Transdimensional Reconstructor 30192 | -2/Section 7 | Found Transdimensional Reconstructor 30193 | -2/Section 7 | Initialized slip node 30291 | -2/Section 7 | Spotted B-99 Colossus 30443 | -2/Section 7 | Found LRC Energy Well 30443 | -2/Section 7 | Installed LRC Energy Well, increased energy storage capacity (+250) 30454 | -2/Section 7 | Found LRC Insulator 30454 | -2/Section 7 | Installed LRC Insulator, 1 resistance modified: EM +25% 30457 | -2/Section 7 | Found LRC Storage 30457 | -2/Section 7 | Installed LRC Storage, increased inventory capacity (+2) 30884 | -2/Section 7 | Destroyed B-99 Colossus 30905 | -2/Section 7 | Found Prototype Ballistic Gun 30910 | -2/Section 7 | Found Prototype Ballistic Gun 31094 | -2/Section 7 | Spotted Executioner 31134 | -2/Section 7 | Spotted Executioner 31146 | -2/Section 7 | Identified Multirail (x2) 31155 | -2/Section 7 | Destroyed Executioner 31190 | -2/Section 7 | Destroyed Executioner 31220 | -2/Section 7 | Lost 4 parts (2n1u1w) 31242 | -2/Section 7 | Found Prototype Device 31242 | -2/Section 7 | Identified Adv. Kinecellerator 31248 | -2/Section 7 | Found Prototype Processor 31339 | -2/Section 7 | Destroyed 7 combat bots 31585 | -2/Section 7 | Build established: Scavenger-Gunner 31749 | -2/Section 7 | Destroyed B-90 Cyclops 31869 | -2/Section 7 | Found Core Regenerator 31954 | -2/Section 7 | Build established: Alien-Tank 32243 | -2/Section 7 | High security lockdown imminent 32273 | -2/Section 7 | Destroyed 10 combat bots 32305 | -2/Section 7 | Discovered new exit (range 13) 32323 | -2/Section 7 | High security lockdown engaged 32327 | -2/Section 7 | Entered Access 32327 | -1/Access | Evolved 2 slots (calibrated): Power x1, -Propulsion x1, Utility x2 32334 | -1/Access | Used Subatomic Replicator to replicate Potential Cannon 32356 | -1/Access | Lost 3 parts (2n1w) 32365 | -1/Access | Identified Exp. Core Analyzer 32529 | -1/Access | Unchained authorized (6S-H0T) 32577 | -1/Access | First assault squad dispatched 32731 | -1/Access | Build established: Scavenger-Gunner 32899 | -1/Access | Garrison activated, responded to threat 33218 | -1/Access | Destroyed 9 combat bots 33504 | -1/Access | Lost 4 parts (1p3u) 33804 | -1/Access | Destroyed 7 combat bots 33810 | -1/Access | Lost 10 parts (1p2n4u3w) 33855 | -1/Access | Lost 7 parts (1p2n1u3w) 34243 | -1/Access | Lost 11 parts (4p4u3w) 34344 | -1/Access | Scrapoid reinforcements arrived 34344 | -1/Access | Used Core Regenerator, restored core integrity (+400) 34528 | -1/Access | Lost 4 allies 34560 | -1/Access | Lost 3 parts (2u1w) 34621 | -1/Access | Found Corrupted Unknown Device 34621 | -1/Access | Identified Scrap Suit 34622 | -1/Access | Warped through subspace 34622 | -1/Access | Spotted B-99 Colossus 34623 | -1/Access | Warped through subspace 34632 | -1/Access | Garrison activated, responded to threat 34662 | -1/Access | Warped through subspace 34663 | -1/Access | Warped through subspace 34762 | -1/Access | Used Core Regenerator, restored core integrity (+400) 34775 | -1/Access | Destroyed 10 combat bots 34790 | -1/Access | Core integrity fell below 50% 34798 | -1/Access | Emitted hypermatrix ping 34801 | -1/Access | Core integrity fell below 20% 34803 | -1/Access | Assembled emerged from beneath the floor 34803 | -1/Access | Spotted B-99 Colossus 34824 | -1/Access | Lost 20 parts (3p3n10u4w) 34854 | -1/Access | Crushed by falling debris 34858 | -1/Access | Destroyed by P-80 Master with Gamma Rifle Last Messages --------------- 34803_ as-03144 destroyed. 34803_ as-85883 destroyed. 34804_ U-05 Engineer builds a Wall. 34804_ Slug penetrates as-30819. 34806_ Gamma Rifle tumbles out of recycling unit. 34812_ Acquired Unknown Processor. 34812_ Identified Imp. Targeting Computer. 34813_ Identified Powered Hammer. 34825_ Core Membrane filtered system corruption (1). 34827_ ALERT: Unidentified disturbance in Zone 5N, assault force dispatched. 34829_ Core Membrane filtered system corruption (1). 34852_ The unstable cave ceiling collapses. 34852_ P-80 Master crushed by falling debris. 34854_ The unstable cave ceiling collapses. 34854_ Crushed by falling debris. 34855_ Imp. Targeting Computer destroyed. Map ----- +----------------------------------------------------+ | ???????????????????????????## # ## # | | ????????????????????????????# # ## # | | ????????????????????????????# % ##+##+#### # | | ????????????????????????????# % #### # | | ??????????????????????????###+##+####### | | ??????????????????????????# # | | ??????????????????????????# + | | ??????????????????????????# ###### | | ??????????????????????????# #????# | | ??????????????????????????# #????# ! | | ??????????????????????????# #????# * ! | | ??????????????????????????# #????# = | | ??????????????????????????# """""" #????###### | | ??????????????????????????# """""" #?????????# | | ??????????????????????????# """""" #?????????# | | ??????????????????????????# """""" #?????????# | | ??????????????????????????# """""" #?????????# | | ??????????????????????????########?#####?????????# | | ?????????????????????????????????????????????????# | | ?????????????????????????????????????????????????# | | ?????????????????????????????????????????????????# | | ??????????????????????????????###????????????????# | | ??????????????????????????????#"################## | | ?????????????????????????????## # | | ????????????????????????######" ! # | | ????????????????????????#@# # # # "" | | ????????????????????????##p# ##""""" # "" | | ?????????????????????????######""""" # | | ??????????????????????????????#""""" # | | ??????????????????????????????#""""" ! # | | ??????????????????????????????#""""" | | ??????????????????????????????#""""" | | ??????????????????????????????# | | ??????????????????????????????# | | ??????????????????????????????# | | ????????????????????????? ###+###""" | | ????????????????????????? | | ????????????????????????? !*% | | ????????????????????????? ! | | ????????????????????????? !!%! % | | ?????????????????????????? ###+#####"=% | | ??????????????????????????? ????????# | | ?????????????????????????????????????# | | ?????????????????????????????????????# | | ?????????????????????????????????????# | | ?????????????????????????????????????# | | ?????????????????????????????????????# ! | | ?????????????????????????????????????# | | ?????????????????????????????????????# | | ?????????????????????????????????????# | +----------------------------------------------------+ Best States ------------- Heat Dissipation 244 Coolant Potential 100 Energy Generation 89 Energy Capacity 1875 Matter Stores 300 Matter Capacity 550 Sight Range 24 Robot Scan Range 20 Terrain Scan Density 10 ECM Strength 2 Jamming Range 16 Additional Mass Support 9 Base Temperature (-) 150 EM Shielding 3 Armor Coverage 900 Resistance: TH 50 Resistance: EM 100 Weapon Shielding 90 Weapon Cycling 25 Phase Shifting 10 Evasion (%) 55 Targeting Accuracy 24 Melee Accuracy 8 Target Analysis 12 Core Analysis 8 Recoil Reduction 1 Matter Filtering 50 Energy Filtering 30 Kinecelleration 50 Salvage Targeting 3 Offensive Hacking 16 Defensive Hacking 25 Relay Coupler Types 2 Relay Coupler Value 35 Item Schematics ----------------- None Robot Schematics ------------------ None Fabricated ------------ Linear Accelerator | x2 | -5/Factory | Preloaded Repaired ---------- Centrium Medium Armor Plating | 42% | -5/Factory Coolant Network | 30% | -2/Section 7 Studied --------- Enh. Nova Cannon | -2/Section 7 | Hacked Alien Tech Used ----------------- Integrated Mediator Core Reset Matrix Phase Armor Core Stripper Transdimensional Reconstructor Core Physics Calibrator Core Membrane High-powered Transdimensional Reconstructor Dimensional Node Initializer LRC Energy Well LRC Insulator LRC Storage Subatomic Replicator Core Regenerator Achievements -------------- Help And Harvest Hulk Smash Overclocked Challenges ------------ None Game ------ Seed ConstructInsulationDetonator Manual? 0 Play Time 07:05:57 Cumulative 364.3 hours Start 2025.11.04 @ 12:57:37 End 2025.11.06 @ 15:09:30 Sessions 7 Manual Loads 0 Difficulty Rogue Special Mode None Game No. 120 Rogue 120 Adventurer 0 Explorer 0 Win Type - Total 8 Types 3/0/3/0/0/0/1/0/0/1 Lore% 78 Gallery% 84 Achievement% 68 Wizard Run 0 Options --------- Layout 1 ASCII 0 Keyboard 1 Movement Arrows Keybinds 0 Fullscreen 1 Font 24/Smallcaps Map View 50x35 Zoom Use 0% Tactical HUD 1 Map Filters NONE Filters NONE Steam 1 RUN: 6676a25f-2ac3-4468-acf2-18d1351fc928